Body,Body Name,Date,Transaction Number,Invoice Number,Amount,Supplier Name,Supplier ID ,VAT Registration Number ,Expense Area,Expense Type,Expense Code,Purchase Order
http://statistics.data.gov.uk/id/local-authority/29UP,Tonbridge & Malling Borough Council,2/2/2022,0011043825/1,11043825, 187.50,Orlo (SocialSignIn),01519000,,Information & Publicity,Information & Publicity,D32MJ000044076,110069401
http://statistics.data.gov.uk/id/local-authority/29UP,Tonbridge & Malling Borough Council,2/2/2022,0011043826/1,11043826, 1500.00,Kent County Council,00322500,,Safeguarding,Community Development,D30MB000047018,110069384
http://statistics.data.gov.uk/id/local-authority/29UP,Tonbridge & Malling Borough Council,2/2/2022,0011043827/1,11043827, 1127.21,Glaze-Tech Services Ltd,00779500,,BRREP Window/door repairs,Tonbridge Swimming Pool,M15HBP20001919,110069331
http://statistics.data.gov.uk/id/local-authority/29UP,Tonbridge & Malling Borough Council,2/2/2022,0011043828/1,11043828, 469.50,System Hygienics Ltd,00600300,,BRREP General Maintenance,Tonbridge Swimming Pool,M15HBP30001900,110069368
http://statistics.data.gov.uk/id/local-authority/29UP,Tonbridge & Malling Borough Council,2/2/2022,0011043828/2,11043828, 469.50,System Hygienics Ltd,00600300,,BRREP General Maintenance,Larkfield Leisure Centre,M15HDP30001900,110069368
http://statistics.data.gov.uk/id/local-authority/29UP,Tonbridge & Malling Borough Council,2/2/2022,0011043829/1,11043829, 104.00,BML Building Services Ltd,01505000,,BRREP Response - General,Pleasure Grounds & Open Spaces,M15HHP50001997,110069351
http://statistics.data.gov.uk/id/local-authority/29UP,Tonbridge & Malling Borough Council,2/2/2022,0011043830/1,11043830, 770.00,Coolburn Air Conditioning Ltd,01137900,,BRREP Servicing - air handling,Larkfield Leisure Centre,M15HDP20001936,110069392
http://statistics.data.gov.uk/id/local-authority/29UP,Tonbridge & Malling Borough Council,2/2/2022,0011043831/1,11043831, 990.00,Comfort Controls  (Service) Limited,01226700,,BRREP BMS System Mntce/Upgrade,Larkfield Leisure Centre,M15HDP20001912,110069337
http://statistics.data.gov.uk/id/local-authority/29UP,Tonbridge & Malling Borough Council,2/2/2022,0011043832/1,11043832, 600.00,Automated Limited,00007000,,BRREP Serv Internal Lighting,Tonbridge Swimming Pool,M15HBP20001957,110069353
http://statistics.data.gov.uk/id/local-authority/29UP,Tonbridge & Malling Borough Council,2/2/2022,0011043832/2,11043832, 1011.72,Automated Limited,00007000,,BRREP IEE Testing,Tonbridge Swimming Pool,M15HBP30001991,110069353
http://statistics.data.gov.uk/id/local-authority/29UP,Tonbridge & Malling Borough Council,2/2/2022,0011043833/1,11043833, 516.00,BML Building Services Ltd,01505000,,BRREP Fence/Compound Repairs,Larkfield Leisure Centre,M15HDP20001945,110069400
http://statistics.data.gov.uk/id/local-authority/29UP,Tonbridge & Malling Borough Council,2/2/2022,0011043834/1,11043834, 566.00,BML Building Services Ltd,01505000,,BRREP General Maintenance,Land Review,M15MAP49901900,110069382
http://statistics.data.gov.uk/id/local-authority/29UP,Tonbridge & Malling Borough Council,2/2/2022,0011043835/1,11043835, 337.00,BML Building Services Ltd,01505000,,BRREP Response - General,Ton Sportsgrnd Bldgs / Toilets,M15HCP50001997,110069381
http://statistics.data.gov.uk/id/local-authority/29UP,Tonbridge & Malling Borough Council,2/2/2022,0011043836/1,11043836, 21.99,KCS,00054200,,Stationery,Admin & Prop Sals&Overheads,D01AA000043003,110069402
http://statistics.data.gov.uk/id/local-authority/29UP,Tonbridge & Malling Borough Council,2/2/2022,0011043837/1,11043837, 1600.00,Flex Flooring,01208600,,BRREP Carpet / Floors - Public,Larkfield Leisure Centre,M15HDP20001926,110069399
http://statistics.data.gov.uk/id/local-authority/29UP,Tonbridge & Malling Borough Council,2/2/2022,0011043840/1,11043840, 1519.96,Royal Mail,00086200,,Purchases,Mailsort Stock Account,K37BR000001002,
http://statistics.data.gov.uk/id/local-authority/29UP,Tonbridge & Malling Borough Council,2/2/2022,0011043841/1,11043841, 175.46,Royal Mail,00086200,,Postages - Business Reply,Electoral Registration,D31MF000045003,
http://statistics.data.gov.uk/id/local-authority/29UP,Tonbridge & Malling Borough Council,2/2/2022,0011043841/2,11043841, 63.24,Royal Mail,00086200,,Purchases,Business Reply Stock Account,K14AT000001002,
http://statistics.data.gov.uk/id/local-authority/29UP,Tonbridge & Malling Borough Council,2/2/2022,0011043842/1,11043842, 804.40,Premier Paper Group,01421800,,Purchases - Paper,Printing,D22GA000040102,
http://statistics.data.gov.uk/id/local-authority/29UP,Tonbridge & Malling Borough Council,2/2/2022,0011043843/1,11043843, 8.75,REDACTED PERSONAL DATA,01681100,,Postages - PPI / Walksort,Housing Benefits,C05CL000045017,
http://statistics.data.gov.uk/id/local-authority/29UP,Tonbridge & Malling Borough Council,2/2/2022,0011043844/1,11043844, 12.70,REDACTED PERSONAL DATA,00012900,,Postages - PPI / Walksort,Housing Benefits,C05CL000045017,
http://statistics.data.gov.uk/id/local-authority/29UP,Tonbridge & Malling Borough Council,2/2/2022,0011043844/2,11043844, 48.00,REDACTED PERSONAL DATA,00012900,,Postages - PPI / Walksort,I T Sals&Overheads,D01AN000045017,
http://statistics.data.gov.uk/id/local-authority/29UP,Tonbridge & Malling Borough Council,2/2/2022,0011043845/1,11043845, 10.00,Alan Doone,01374000,,Purchases,TIC Stock Account,K18AX000001002,
http://statistics.data.gov.uk/id/local-authority/29UP,Tonbridge & Malling Borough Council,2/2/2022,0011043847/1,11043847, 2000.00,Cornerstones Barristers,01359100,,Legal Fees,Legal Sals&Overheads,D01ARDR0044002,
http://statistics.data.gov.uk/id/local-authority/29UP,Tonbridge & Malling Borough Council,2/2/2022,0011043848/1,11043848, 1690.29,Kent County Council,00322500,,Kent Highways,Local Land Charges,D35NK000044240,
http://statistics.data.gov.uk/id/local-authority/29UP,Tonbridge & Malling Borough Council,2/2/2022,0011043849/1,11043849, 1134.00,Venn Group Ltd,00914300,,Temporary Staff,Legal Sals&Overheads,D01ARDR0011300,
http://statistics.data.gov.uk/id/local-authority/29UP,Tonbridge & Malling Borough Council,2/2/2022,0011043850/1,11043850, 151.07,K T Fire Protection Ltd,00057000,,BRREP Servicing - FireAlarmSys,Leis Man Poult Wood Golf Centr,M15HEP20001937,
http://statistics.data.gov.uk/id/local-authority/29UP,Tonbridge & Malling Borough Council,2/2/2022,0011043851/1,11043851, 116.48,KCS,00054200,,Estate Management Charge,Land Review,D40PS000020400,
http://statistics.data.gov.uk/id/local-authority/29UP,Tonbridge & Malling Borough Council,2/2/2022,0011043852/1,11043852, 207.77,KCS,00054200,,Estate Management Charge,Land Review,D40PS000020400,
http://statistics.data.gov.uk/id/local-authority/29UP,Tonbridge & Malling Borough Council,2/2/2022,0011043853/1,11043853, 277.15,KCS,00054200,,Estate Management Charge,Land Review,D40PS000020400,
http://statistics.data.gov.uk/id/local-authority/29UP,Tonbridge & Malling Borough Council,2/2/2022,0011043854/1,11043854, 566.52,KCS,00054200,,Estate Management Charge,Land Review,D40PS000020400,
http://statistics.data.gov.uk/id/local-authority/29UP,Tonbridge & Malling Borough Council,2/2/2022,0011043855/1,11043855, 40.00,Castle Water,01696500,,Estate Management Charge,Land Review,D40PS000020400,
http://statistics.data.gov.uk/id/local-authority/29UP,Tonbridge & Malling Borough Council,2/2/2022,0011043856/1,11043856, 134.17,Scottish Water Business Stream Ltd,01641100,,Sewerage Charges,Buildings,D21FEDD5024003,
http://statistics.data.gov.uk/id/local-authority/29UP,Tonbridge & Malling Borough Council,2/2/2022,0011043857/3,11043857, 3.20,Royal Mail,00086200,,Purchases,Mailsort Stock Account,K37BR000001002,
http://statistics.data.gov.uk/id/local-authority/29UP,Tonbridge & Malling Borough Council,2/2/2022,0011043857/4,11043857, 2942.59,Royal Mail,00086200,,Purchases,Mailsort Stock Account,K37BR000001002,
http://statistics.data.gov.uk/id/local-authority/29UP,Tonbridge & Malling Borough Council,2/2/2022,0011043862/3,11043862, 1600.10,GSF SANDYLIGHT LTD,01705300,,Temporary Staff,Admin & Prop Sals&Overheads,D01AADA0511300,
http://statistics.data.gov.uk/id/local-authority/29UP,Tonbridge & Malling Borough Council,2/2/2022,0011043863/1,11043863, 40.00,REDACTED PERSONAL DATA,00012900,,Postages - PPI / Walksort,I T Sals&Overheads,D01AN000045017,
http://statistics.data.gov.uk/id/local-authority/29UP,Tonbridge & Malling Borough Council,2/2/2022,0011043863/2,11043863, 70.00,REDACTED PERSONAL DATA,00012900,,Postages - PPI / Walksort,I T Sals&Overheads,D01AN000045017,
http://statistics.data.gov.uk/id/local-authority/29UP,Tonbridge & Malling Borough Council,2/2/2022,0011043864/1,11043864, 4374.00,John Newton & Company Ltd,01833200,,H&CG Fund Council Specific,Eco Dev & Reg Gen Bus Support,D52TD000047027,
http://statistics.data.gov.uk/id/local-authority/29UP,Tonbridge & Malling Borough Council,2/2/2022,0011043865/1,11043865, 72.00,Swanley Town Council,01656400,,Hospitality,Mayoral & Other Member Support,D29LX000048003,
http://statistics.data.gov.uk/id/local-authority/29UP,Tonbridge & Malling Borough Council,2/2/2022,0011043866/3,11043866, 244.80,Reach Publishing Services Ltd,01806900,,Re-opening High Streets,Eco Dev & Reg Gen Bus Support,D52TDCV1948076,
http://statistics.data.gov.uk/id/local-authority/29UP,Tonbridge & Malling Borough Council,2/2/2022,0012008235/1,12008235, 39.99,CCS Media Ltd,00018000,,Purchases,Information Technology,D27KD000040101,410032114
http://statistics.data.gov.uk/id/local-authority/29UP,Tonbridge & Malling Borough Council,2/2/2022,0012008235/2,12008235, 2.00,CCS Media Ltd,00018000,,Delivery Expenses,Information Technology,D27KD000044069,410032114
http://statistics.data.gov.uk/id/local-authority/29UP,Tonbridge & Malling Borough Council,2/2/2022,0012008236/1,12008236, 293.93,CCS Media Ltd,00018000,,Purchases,Information Technology,D27KD000040101,410032118
http://statistics.data.gov.uk/id/local-authority/29UP,Tonbridge & Malling Borough Council,2/2/2022,0012008236/2,12008236, 112.47,CCS Media Ltd,00018000,,Purchases,Information Technology,D27KD000040101,410032118
http://statistics.data.gov.uk/id/local-authority/29UP,Tonbridge & Malling Borough Council,2/2/2022,0012008236/3,12008236, 2.00,CCS Media Ltd,00018000,,Delivery Expenses,Information Technology,D27KD000044069,410032118
http://statistics.data.gov.uk/id/local-authority/29UP,Tonbridge & Malling Borough Council,2/2/2022,0012008237/1,12008237, 7260.40,KHIPU Networks Limited,01191500,,Maintenance - Ancillary Equip,Information Technology,D27KD000040137,410032109
http://statistics.data.gov.uk/id/local-authority/29UP,Tonbridge & Malling Borough Council,2/2/2022,0012008237/2,12008237, 2400.00,KHIPU Networks Limited,01191500,,Consultancy Fees,Information Technology,D27KD000044011,410032109
http://statistics.data.gov.uk/id/local-authority/29UP,Tonbridge & Malling Borough Council,2/2/2022,0012008237/3,12008237, 3748.80,KHIPU Networks Limited,01191500,,Initial Furniture & Equipment,Capital Renewals IT,P06FBFB3009906,410032109
http://statistics.data.gov.uk/id/local-authority/29UP,Tonbridge & Malling Borough Council,2/2/2022,0012008238/3,12008238, 12.72,Esendex Limited,01008900,,Leased Lines & Modems,Information Technology,D27KD000045011,
http://statistics.data.gov.uk/id/local-authority/29UP,Tonbridge & Malling Borough Council,2/2/2022,0021037711/1,21037711, 18315.60,Alliance Leisure Services Ltd,01781100,,Contract Payments,LLCP Facility Improv,P05FF000009904,
http://statistics.data.gov.uk/id/local-authority/29UP,Tonbridge & Malling Borough Council,2/2/2022,0021037717/5,21037717, 36.39,Castle Water,01696500,,Water Charges (Metered),Leybourne Lakes Country Park,B22LK000024001,
http://statistics.data.gov.uk/id/local-authority/29UP,Tonbridge & Malling Borough Council,2/2/2022,0021037720/1,21037720, 602.80,Wrotham Traders,01124900,,Borough Christmas Lighting,Eco Dev & Reg Boro Chris Light,D52TE000047014,
http://statistics.data.gov.uk/id/local-authority/29UP,Tonbridge & Malling Borough Council,2/2/2022,0021037721/10,21037721, 4341.07,Landscape Services Ltd,00057600,,Grounds Maintenance Contract,Cemetery,B26MP000050103,
http://statistics.data.gov.uk/id/local-authority/29UP,Tonbridge & Malling Borough Council,2/2/2022,0021037721/11,21037721, 205.04,Landscape Services Ltd,00057600,,Grounds Maintenance Contract,Churchyards St Peter & St Paul,B28MX000050103,
http://statistics.data.gov.uk/id/local-authority/29UP,Tonbridge & Malling Borough Council,2/2/2022,0021037721/12,21037721, 149.11,Landscape Services Ltd,00057600,,Grounds Maintenance Contract,Churchyards St Stephens,B28MY000050103,
http://statistics.data.gov.uk/id/local-authority/29UP,Tonbridge & Malling Borough Council,2/2/2022,0021037721/13,21037721, 164.81,Landscape Services Ltd,00057600,,Grounds Maintenance Contract,Grounds,D21FF000050103,
http://statistics.data.gov.uk/id/local-authority/29UP,Tonbridge & Malling Borough Council,2/2/2022,0021037721/14,21037721, 312.58,Landscape Services Ltd,00057600,,Maintenance of Grounds,Parking Off-Street,E10HA000020402,
http://statistics.data.gov.uk/id/local-authority/29UP,Tonbridge & Malling Borough Council,2/2/2022,0021037721/15,21037721, 980.27,Landscape Services Ltd,00057600,,Maintenance of Grounds,Parking Off-Street,E10HAE00120402,
http://statistics.data.gov.uk/id/local-authority/29UP,Tonbridge & Malling Borough Council,2/2/2022,0021037721/16,21037721, 93.08,Landscape Services Ltd,00057600,,Maintenance of Grounds,Parking Off-Street,E10HAE00220402,
http://statistics.data.gov.uk/id/local-authority/29UP,Tonbridge & Malling Borough Council,2/2/2022,0021037721/17,21037721, 84.41,Landscape Services Ltd,00057600,,Maintenance of Grounds,Parking Off-Street,E10HAE00320402,
http://statistics.data.gov.uk/id/local-authority/29UP,Tonbridge & Malling Borough Council,2/2/2022,0021037721/18,21037721, 21.05,Landscape Services Ltd,00057600,,Maintenance of Grounds,Parking Off-Street,E10HAE00420402,
http://statistics.data.gov.uk/id/local-authority/29UP,Tonbridge & Malling Borough Council,2/2/2022,0021037721/19,21037721, 0.54,Landscape Services Ltd,00057600,,Maintenance of Grounds,Parking Off-Street,E10HAE00520402,
http://statistics.data.gov.uk/id/local-authority/29UP,Tonbridge & Malling Borough Council,2/2/2022,0021037721/20,21037721, 58.93,Landscape Services Ltd,00057600,,Maintenance of Grounds,Parking Off-Street,E10HAE00620402,
http://statistics.data.gov.uk/id/local-authority/29UP,Tonbridge & Malling Borough Council,2/2/2022,0021037721/21,21037721, 137.58,Landscape Services Ltd,00057600,,Maintenance of Grounds,Parking Off-Street,E10HAE01020402,
http://statistics.data.gov.uk/id/local-authority/29UP,Tonbridge & Malling Borough Council,2/2/2022,0021037721/22,21037721, 3.05,Landscape Services Ltd,00057600,,Maintenance of Grounds,Parking Off-Street,E10HAE01220402,
http://statistics.data.gov.uk/id/local-authority/29UP,Tonbridge & Malling Borough Council,2/2/2022,0021037721/23,21037721, 6.73,Landscape Services Ltd,00057600,,Maintenance of Grounds,Parking Off-Street,E10HAE01320402,
http://statistics.data.gov.uk/id/local-authority/29UP,Tonbridge & Malling Borough Council,2/2/2022,0021037721/24,21037721, 27.99,Landscape Services Ltd,00057600,,Maintenance of Grounds,Parking Off-Street,E10HAE01520402,
http://statistics.data.gov.uk/id/local-authority/29UP,Tonbridge & Malling Borough Council,2/2/2022,0021037721/25,21037721, 54.69,Landscape Services Ltd,00057600,,Maintenance of Grounds,Parking Off-Street,E10HAE01620402,
http://statistics.data.gov.uk/id/local-authority/29UP,Tonbridge & Malling Borough Council,2/2/2022,0021037721/26,21037721, 13.65,Landscape Services Ltd,00057600,,Maintenance of Grounds,Parking Off-Street,E10HAE02120402,
http://statistics.data.gov.uk/id/local-authority/29UP,Tonbridge & Malling Borough Council,2/2/2022,0021037721/27,21037721, 21.74,Landscape Services Ltd,00057600,,Maintenance of Grounds,Parking Off-Street,E10HAE02320402,
http://statistics.data.gov.uk/id/local-authority/29UP,Tonbridge & Malling Borough Council,2/2/2022,0021037721/28,21037721, 83.33,Landscape Services Ltd,00057600,,Maintenance of Grounds,Parking Off-Street,E10HAE02820402,
http://statistics.data.gov.uk/id/local-authority/29UP,Tonbridge & Malling Borough Council,2/2/2022,0021037721/29,21037721, 22.56,Landscape Services Ltd,00057600,,Maintenance of Grounds,Parking Off-Street,E10HAE04020402,
http://statistics.data.gov.uk/id/local-authority/29UP,Tonbridge & Malling Borough Council,2/2/2022,0021037721/3,21037721, 20341.80,Landscape Services Ltd,00057600,,Grounds Maintenance Contract,Sports Grounds,B13ET000050103,
http://statistics.data.gov.uk/id/local-authority/29UP,Tonbridge & Malling Borough Council,2/2/2022,0021037721/30,21037721, 74.40,Landscape Services Ltd,00057600,,Maintenance of Grounds,Parking Off-Street,E10HAE04520402,
http://statistics.data.gov.uk/id/local-authority/29UP,Tonbridge & Malling Borough Council,2/2/2022,0021037721/4,21037721, 7076.24,Landscape Services Ltd,00057600,,Grounds Maintenance Contract,Tonbridge Castle Grounds,B22LB000050103,
http://statistics.data.gov.uk/id/local-authority/29UP,Tonbridge & Malling Borough Council,2/2/2022,0021037721/5,21037721, 53.86,Landscape Services Ltd,00057600,,Trade Refuse Charges,Haysden Country Park,B22LC000044008,
http://statistics.data.gov.uk/id/local-authority/29UP,Tonbridge & Malling Borough Council,2/2/2022,0021037721/6,21037721, 462.07,Landscape Services Ltd,00057600,,Litter Collection,Haysden Country Park,B22LC000044061,
http://statistics.data.gov.uk/id/local-authority/29UP,Tonbridge & Malling Borough Council,2/2/2022,0021037721/7,21037721, 1600.71,Landscape Services Ltd,00057600,,Grounds Maintenance Contract,Haysden Country Park,B22LC000050103,
http://statistics.data.gov.uk/id/local-authority/29UP,Tonbridge & Malling Borough Council,2/2/2022,0021037721/8,21037721, 554.05,Landscape Services Ltd,00057600,,Grounds Maintenance Contract,Haysden Country Park,B22LC000050103,
http://statistics.data.gov.uk/id/local-authority/29UP,Tonbridge & Malling Borough Council,2/2/2022,0021037721/9,21037721, 11232.13,Landscape Services Ltd,00057600,,Grounds Maintenance Contract,Open Spaces & Amenity Areas,B22LE000050103,
http://statistics.data.gov.uk/id/local-authority/29UP,Tonbridge & Malling Borough Council,2/2/2022,0021037723/1,21037723, 80.00,Mr Mark Williams,01184500,,Marketing,Events Development,B41TJZ99944215,210056641
http://statistics.data.gov.uk/id/local-authority/29UP,Tonbridge & Malling Borough Council,2/2/2022,0021037724/1,21037724, 40.00,Mr Mark Williams,01184500,,Marketing,Events Development,B41TJZ99944215,210056637
http://statistics.data.gov.uk/id/local-authority/29UP,Tonbridge & Malling Borough Council,2/2/2022,0021037725/1,21037725, 5082.70,West Malling Chamber or Commerce,01750800,,Borough Christmas Lighting,Eco Dev & Reg Boro Chris Light,D52TE000047014,
http://statistics.data.gov.uk/id/local-authority/29UP,Tonbridge & Malling Borough Council,2/2/2022,0021037726/3,21037726, 480.00,Twig Trading Ltd,01602200,,Maintenance of Grounds,Leybourne Lakes Country Park,B22LK000020402,
http://statistics.data.gov.uk/id/local-authority/29UP,Tonbridge & Malling Borough Council,2/2/2022,0022026222/5,22026222, 193.74,British Gas Services LTD,01260000,,Electricity,Homelessness,C01AAMAUN21002,
http://statistics.data.gov.uk/id/local-authority/29UP,Tonbridge & Malling Borough Council,2/2/2022,0022026222/6,22026222, 13.00,British Gas Services LTD,01260000,,Electricity,Homelessness,C01AAMAUN21002,
http://statistics.data.gov.uk/id/local-authority/29UP,Tonbridge & Malling Borough Council,2/2/2022,0022026226/1,22026226, 11.15,REDACTED PERSONAL DATA,01051900,,Purchases,Environmental Protection,H32SN000040101,
http://statistics.data.gov.uk/id/local-authority/29UP,Tonbridge & Malling Borough Council,2/2/2022,0022026227/1,22026227, 117.18,Aran Services LTD,01562900,,Other Expenses,Housing Assistance,P03AD000009908,
http://statistics.data.gov.uk/id/local-authority/29UP,Tonbridge & Malling Borough Council,2/2/2022,0022026231/3,22026231, 225.00,Countrystyle Group,00835900,781981681,Plastic Recycling,Dry Recycling,H34SR000054019,
http://statistics.data.gov.uk/id/local-authority/29UP,Tonbridge & Malling Borough Council,2/2/2022,0022026232/3,22026232, 4645.60,Countrystyle Group,00835900,781981681,Plastic Recycling,Dry Recycling,H34SR000054019,
http://statistics.data.gov.uk/id/local-authority/29UP,Tonbridge & Malling Borough Council,2/2/2022,0022026233/3,22026233, 1101.09,KCC - L.A.S.E.R Commercial Services ,00184300,,Electricity,Public Conveniences,H22SCH00921002,
http://statistics.data.gov.uk/id/local-authority/29UP,Tonbridge & Malling Borough Council,2/2/2022,0022026236/1,22026236, 990.00,Mallard Consultancy Ltd,01528600,,Purchases,Street Scene,H23SD000040101,220003192
http://statistics.data.gov.uk/id/local-authority/29UP,Tonbridge & Malling Borough Council,2/2/2022,0022026237/3,22026237, 1512.00,The Oyster Partnership,01196400,,Temporary Staff,Env Hlth & Hsg Sals&Overheads,D01AVDV0711300,
http://statistics.data.gov.uk/id/local-authority/29UP,Tonbridge & Malling Borough Council,2/2/2022,0022026238/1,22026238, 6600.00,Under My Roof Ltd,01806700,,Temporary Accommodation,Homelessness,C01AA000044051,
http://statistics.data.gov.uk/id/local-authority/29UP,Tonbridge & Malling Borough Council,2/2/2022,0022026239/1,22026239, 2077.00,1st  Steps Housing Kent,01716100,,Temporary Accommodation,Homelessness,C01AA000044051,
http://statistics.data.gov.uk/id/local-authority/29UP,Tonbridge & Malling Borough Council,2/2/2022,0022026240/1,22026240, 3735.29,Ward Security LTD,01490000,,Dog Warden,Street Scene,H23SD000044100,
http://statistics.data.gov.uk/id/local-authority/29UP,Tonbridge & Malling Borough Council,2/2/2022,0022026241/1,22026241, 905.00,On Site Wheelie Washers,01069700,,Other Expenses,Garden Waste Recycling,H34ST000048010,
http://statistics.data.gov.uk/id/local-authority/29UP,Tonbridge & Malling Borough Council,2/2/2022,0022026242/1,22026242, 409.00,On Site Wheelie Washers,01069700,,Other Expenses,Garden Waste Recycling,H34ST000048010,
http://statistics.data.gov.uk/id/local-authority/29UP,Tonbridge & Malling Borough Council,2/2/2022,0022026243/1,22026243, 649.73,Peabody South East LTD,01680900,,Other Expenses,Disabled Facilities Grant Mand,P03AC000009908,
http://statistics.data.gov.uk/id/local-authority/29UP,Tonbridge & Malling Borough Council,2/2/2022,0022026244/1,22026244, 4512.00,Premiere Projects,00201200,,Other Expenses,Disabled Facilities Grant Mand,P03AC000009908,
http://statistics.data.gov.uk/id/local-authority/29UP,Tonbridge & Malling Borough Council,2/2/2022,0022026245/1,22026245, 1550.00,Kent Housing,01503200,,Temporary Accommodation,Homelessness,C01AA000044051,
http://statistics.data.gov.uk/id/local-authority/29UP,Tonbridge & Malling Borough Council,2/2/2022,0022026246/1,22026246, 961.00,Kent Property Services,01722500,,Temporary Accommodation,Homelessness,C01AA000044051,
http://statistics.data.gov.uk/id/local-authority/29UP,Tonbridge & Malling Borough Council,2/2/2022,0022026247/1,22026247, 3193.83,Clarion Housing,01078200,,Homelessness Reduction Initiat,Homelessness,C01AA000048019,
http://statistics.data.gov.uk/id/local-authority/29UP,Tonbridge & Malling Borough Council,2/2/2022,0022026248/1,22026248, 104.01,Premier Inn,01217400,,Temporary Accommodation,Homelessness,C01AA000044051,
http://statistics.data.gov.uk/id/local-authority/29UP,Tonbridge & Malling Borough Council,2/2/2022,0031018428/3,31018428, 1260.00,Sevenoaks District Council,00089300,,Out of Hours Service,Civil Contingencies,D33NA000045025,
http://statistics.data.gov.uk/id/local-authority/29UP,Tonbridge & Malling Borough Council,2/2/2022,0031018431/1,31018431, 2018.79,Amey LG LTD,01324000,,Car Parking Action Plan,Parking On-Street,E10HD000020801,310042740
http://statistics.data.gov.uk/id/local-authority/29UP,Tonbridge & Malling Borough Council,2/2/2022,0031018432/3,31018432, 400.00,Arnold & Court Ltd,01411300,,Premises Repairs & Maintenance,Parking Off-Street,E10HA000020601,
http://statistics.data.gov.uk/id/local-authority/29UP,Tonbridge & Malling Borough Council,2/2/2022,0031018433/3,31018433, 57.15,Arnold & Court Ltd,01411300,,Winter Maintenance,Parking Off-Street,E10HA000020701,
http://statistics.data.gov.uk/id/local-authority/29UP,Tonbridge & Malling Borough Council,2/2/2022,0031018433/4,31018433, 85.70,Arnold & Court Ltd,01411300,,Premises Repairs & Maintenance,Parking Off-Street,E10HAE00120601,
http://statistics.data.gov.uk/id/local-authority/29UP,Tonbridge & Malling Borough Council,2/2/2022,0031018433/5,31018433, 85.70,Arnold & Court Ltd,01411300,,Premises Repairs & Maintenance,Parking Off-Street,E10HAE00220601,
http://statistics.data.gov.uk/id/local-authority/29UP,Tonbridge & Malling Borough Council,2/2/2022,0031018433/6,31018433, 57.15,Arnold & Court Ltd,01411300,,Premises Repairs & Maintenance,Parking Off-Street,E10HAE00420601,
http://statistics.data.gov.uk/id/local-authority/29UP,Tonbridge & Malling Borough Council,2/2/2022,0031018433/7,31018433, 170.80,Arnold & Court Ltd,01411300,,Premises Repairs & Maintenance,Parking Off-Street,E10HAE01120601,
http://statistics.data.gov.uk/id/local-authority/29UP,Tonbridge & Malling Borough Council,2/2/2022,0031018434/3,31018434, 80.00,Arnold & Court Ltd,01411300,,Winter Maintenance,Parking Off-Street,E10HA000020701,
http://statistics.data.gov.uk/id/local-authority/29UP,Tonbridge & Malling Borough Council,2/2/2022,0031018434/4,31018434, 120.00,Arnold & Court Ltd,01411300,,Premises Repairs & Maintenance,Parking Off-Street,E10HAE01020601,
http://statistics.data.gov.uk/id/local-authority/29UP,Tonbridge & Malling Borough Council,2/2/2022,0031018435/1,31018435, 400.00,Arnold & Court Ltd,01411300,,Contract Payments,Boro Drainage & Land Drainage,E20MA000054001,310042725
http://statistics.data.gov.uk/id/local-authority/29UP,Tonbridge & Malling Borough Council,2/2/2022,0031018436/1,31018436, 3400.00,Arnold & Court Ltd,01411300,,Winter Maintenance,Parking Off-Street,E10HA000020701,310042763
http://statistics.data.gov.uk/id/local-authority/29UP,Tonbridge & Malling Borough Council,2/2/2022,0031018437/1,31018437, 400.00,Arnold & Court Ltd,01411300,,Winter Maintenance,Parking Off-Street,E10HA000020701,310042763
http://statistics.data.gov.uk/id/local-authority/29UP,Tonbridge & Malling Borough Council,2/2/2022,0031018438/3,31018438, 156.30,British Telecommunications Plc,00012800,,Maintenance - General,Security Services Management,E09GA000040135,
http://statistics.data.gov.uk/id/local-authority/29UP,Tonbridge & Malling Borough Council,2/2/2022,0031018439/1,31018439, 2776.28,Duke Contractors Ltd,00082900,,Contract Payments,Boro Drainage & Land Drainage,E20MA000054001,310042739
http://statistics.data.gov.uk/id/local-authority/29UP,Tonbridge & Malling Borough Council,2/2/2022,0031018439/2,31018439, 757.75,Duke Contractors Ltd,00082900,,Contract Payments,Boro Drainage & Land Drainage,E20MA000054001,310042739
http://statistics.data.gov.uk/id/local-authority/29UP,Tonbridge & Malling Borough Council,2/2/2022,0031018440/3,31018440, 2655.84,G & G Signs,01178400,,Repair & Mtce of Fixed Plant,Boro Highways & Emergency Oper,E01AA000020501,
http://statistics.data.gov.uk/id/local-authority/29UP,Tonbridge & Malling Borough Council,2/2/2022,0031018441/3,31018441, 385.00,Marston,01485000,,Adjudication & Enforcement Ser,Parking Off-Street,E10HA000044230,
http://statistics.data.gov.uk/id/local-authority/29UP,Tonbridge & Malling Borough Council,2/2/2022,0031018442/1,31018442, 1329.00,Parking and Secure Documents,01814500,,Stationery,Parking Off-Street,E10HA000043003,310042772
http://statistics.data.gov.uk/id/local-authority/29UP,Tonbridge & Malling Borough Council,2/2/2022,0031018442/2,31018442, 886.00,Parking and Secure Documents,01814500,,Stationery,Parking On-Street,E10HD000043003,310042772
http://statistics.data.gov.uk/id/local-authority/29UP,Tonbridge & Malling Borough Council,2/2/2022,0031018443/1,31018443, 600.00,PSR Lighting & Signs Ltd,01265400,,Tonbridge Christmas Lighting,Eco Dev & Reg Ton Chris Light,D52TF000047015,210056646
http://statistics.data.gov.uk/id/local-authority/29UP,Tonbridge & Malling Borough Council,2/2/2022,0031018447/3,31018447, 166.44,KCC - L.A.S.E.R Commercial Services ,00184300,,Electricity,Parking Off-Street,E10HA000021002,
http://statistics.data.gov.uk/id/local-authority/29UP,Tonbridge & Malling Borough Council,2/2/2022,0031018449/1,31018449, 1611.61,Chroma Vision Ltd,00891600,,Initial Furniture & Equipment,Cap Ren CCTV,P01BA000009906,310042761
http://statistics.data.gov.uk/id/local-authority/29UP,Tonbridge & Malling Borough Council,2/2/2022,0031018450/1,31018450, 3494.90,Duke Contractors Ltd,00082900,,Premises Repairs & Maintenance,Parking Off-Street,E10HA000020601,310042738
http://statistics.data.gov.uk/id/local-authority/29UP,Tonbridge & Malling Borough Council,2/2/2022,0031018451/1,31018451, 500.00,Millennium Quest LTD,01686300,,Salaries & On Costs,Eco Dev & Reg Ton Chris Light,D52TF000015100,210056658
http://statistics.data.gov.uk/id/local-authority/29UP,Tonbridge & Malling Borough Council,2/2/2022,0032009388/1,32009388, 3445.00,Haymarket Media Group Ltd,00299600,,Application & Appeals,Development Management,A01AB000044194,320003379
http://statistics.data.gov.uk/id/local-authority/29UP,Tonbridge & Malling Borough Council,2/2/2022,0032009389/3,32009389, 1520.00,The Oyster Partnership,01196400,,Temporary Staff,Planning Sals&Overheads,D01AJDJ0111300,
http://statistics.data.gov.uk/id/local-authority/29UP,Tonbridge & Malling Borough Council,2/2/2022,0032009391/1,32009391, 299.88,KM Media Group Ltd,00053900,,Advertising General,Development Management,A01ABZ99944216,320003373
http://statistics.data.gov.uk/id/local-authority/29UP,Tonbridge & Malling Borough Council,2/2/2022,0032009392/1,32009392, 107.10,KM Media Group Ltd,00053900,,Advertising General,Development Management,A01ABZ99944216,320003377
http://statistics.data.gov.uk/id/local-authority/29UP,Tonbridge & Malling Borough Council,2/2/2022,0041033729/1,41033729, 993.75,Morgan Hunt UK Ltd,01086900,,Temporary Staff,Finance Sals&Overheads,D01AFDF1111300,
http://statistics.data.gov.uk/id/local-authority/29UP,Tonbridge & Malling Borough Council,2/2/2022,0041033924/1,41033924, 552.75,KH Recruitment Ltd,01738900,,Temporary Staff,Finance Sals&Overheads,D01AFDF1111300,
http://statistics.data.gov.uk/id/local-authority/29UP,Tonbridge & Malling Borough Council,2/2/2022,0041033925/1,41033925, 300.00,Swale Borough Council,00119200,,Purchases,Finance Sals&Overheads,D01AFDF1140101,410032105
http://statistics.data.gov.uk/id/local-authority/29UP,Tonbridge & Malling Borough Council,2/2/2022,0041033927/1,41033927, 1000.00,Adelante Software Limited,01393800,812115871,Bank Charges,Banking Arrangements,D43QK000044222,410032106
http://statistics.data.gov.uk/id/local-authority/29UP,Tonbridge & Malling Borough Council,2/2/2022,0051008642/1,51008642, 695.00,HB Editorial Services Ltd,01620300,,Recruitment Advertising,Recruitment Expenses,D10DADR0013110,510010533
http://statistics.data.gov.uk/id/local-authority/29UP,Tonbridge & Malling Borough Council,2/2/2022,0051008643/1,51008643, 740.00,Firebrand Training Ltd,01716800,,Ext Fees/IT Training,Training,D10DCDN0113564,510010539
http://statistics.data.gov.uk/id/local-authority/29UP,Tonbridge & Malling Borough Council,2/2/2022,0051008644/1,51008644, 740.00,Firebrand Training Ltd,01716800,,Ext Fees/IT Training,Training,D10DCDN0113564,510010540
http://statistics.data.gov.uk/id/local-authority/29UP,Tonbridge & Malling Borough Council,2/2/2022,0051008645/1,51008645, 370.00,Firebrand Training Ltd,01716800,,Ext Fees/IT Training,Training,D10DCDN0213564,510010541
http://statistics.data.gov.uk/id/local-authority/29UP,Tonbridge & Malling Borough Council,2/7/2022,0041033948/1,41033948, 15.20,HSBC Bank Plc,01740800,,Bank Charges,Banking Arrangements,D43QK000044222,
http://statistics.data.gov.uk/id/local-authority/29UP,Tonbridge & Malling Borough Council,2/9/2022,0011042978/1,11042978, 1650.00,KH Recruitment Ltd,01738900,,Temporary Staff,Admin & Prop Sals&Overheads,D01AADA1211300,
http://statistics.data.gov.uk/id/local-authority/29UP,Tonbridge & Malling Borough Council,2/9/2022,0011043358/1,11043358, 1600.10,GSF SANDYLIGHT LTD,01705300,,Temporary Staff,Admin & Prop Sals&Overheads,D01AADA0511300,
http://statistics.data.gov.uk/id/local-authority/29UP,Tonbridge & Malling Borough Council,2/9/2022,0011043846/1,11043846, 2913.00,Bravo Productions,01770200,,H&CG Fund Council Specific,Eco Dev & Reg Gen Bus Support,D52TD000047027,
http://statistics.data.gov.uk/id/local-authority/29UP,Tonbridge & Malling Borough Council,2/9/2022,0011043867/1,11043867, 42.26,Castle Water,01696500,,Estate Management Charge,Land Review,D40PS000020400,
http://statistics.data.gov.uk/id/local-authority/29UP,Tonbridge & Malling Borough Council,2/9/2022,0011043868/1,11043868, 336.28,Glaze-Tech Services Ltd,00779500,,BRREP Resp - Vandal / Break-In,Larkfield Leisure Centre,M15HDP50001998,110069240
http://statistics.data.gov.uk/id/local-authority/29UP,Tonbridge & Malling Borough Council,2/9/2022,0011043869/1,11043869, 474.00,BML Building Services Ltd,01505000,,BRREP Response - General,Tonbridge Cemetery,M15HJP50001997,110069366
http://statistics.data.gov.uk/id/local-authority/29UP,Tonbridge & Malling Borough Council,2/9/2022,0011043870/1,11043870, 3158.00,Broadwater Technologies,01534500,,BRREP Plant renewals,Larkfield Leisure Centre,M15HDP20001909,110069354
http://statistics.data.gov.uk/id/local-authority/29UP,Tonbridge & Malling Borough Council,2/9/2022,0011043871/1,11043871, 56.00,Willow Pumps Ltd,00114100,,BRREP Servicing - Pumping Stn,Tonbridge Swimming Pool,M15HBP20001931,110069172
http://statistics.data.gov.uk/id/local-authority/29UP,Tonbridge & Malling Borough Council,2/9/2022,0011043871/2,11043871, 112.00,Willow Pumps Ltd,00114100,,BRREP Servicing - Pumping Stn,Ton Sportsgrnd Bldgs / Toilets,M15HCP20001931,110069172
http://statistics.data.gov.uk/id/local-authority/29UP,Tonbridge & Malling Borough Council,2/9/2022,0011043871/3,11043871, 112.00,Willow Pumps Ltd,00114100,,BRREP Servicing - Pumping Stn,Vale Rise Depot,M15LCP20001931,110069172
http://statistics.data.gov.uk/id/local-authority/29UP,Tonbridge & Malling Borough Council,2/9/2022,0011043872/1,11043872, 1731.40,K T Fire Protection Ltd,00057000,,BRREP Servicing - FireAlarmSys,Gibson Building West,M15KBP20001937,110069158
http://statistics.data.gov.uk/id/local-authority/29UP,Tonbridge & Malling Borough Council,2/9/2022,0011043872/2,11043872, 1998.60,K T Fire Protection Ltd,00057000,,BRREP Servicing - FireAlarmSys,Gibson Building East,M15KGP20001937,110069158
http://statistics.data.gov.uk/id/local-authority/29UP,Tonbridge & Malling Borough Council,2/9/2022,0011043873/1,11043873, 738.40,K T Fire Protection Ltd,00057000,,BRREP Servicing - FireAlarmSys,Tonbridge Castle / CAB,M15KFP20001937,110069158
http://statistics.data.gov.uk/id/local-authority/29UP,Tonbridge & Malling Borough Council,2/9/2022,0011043874/1,11043874, 376.50,K T Fire Protection Ltd,00057000,,BRREP Servicing - FireAlarmSys,Tonbridge Castle Gatehouse,M15HKP20001937,110069158
http://statistics.data.gov.uk/id/local-authority/29UP,Tonbridge & Malling Borough Council,2/9/2022,0011043875/1,11043875, 635.95,K T Fire Protection Ltd,00057000,,BRREP Servicing - FireAlarmSys,Leis Man Poult Wood Golf Centr,M15HEP20001937,110069158
http://statistics.data.gov.uk/id/local-authority/29UP,Tonbridge & Malling Borough Council,2/9/2022,0011043876/1,11043876, 2880.30,K T Fire Protection Ltd,00057000,,BRREP Servicing - FireAlarmSys,Larkfield Leisure Centre,M15HDP20001937,110069158
http://statistics.data.gov.uk/id/local-authority/29UP,Tonbridge & Malling Borough Council,2/9/2022,0011043877/1,11043877, 2513.35,K T Fire Protection Ltd,00057000,,BRREP Servicing - FireAlarmSys,Angel Centre,M15HAP20001937,110069158
http://statistics.data.gov.uk/id/local-authority/29UP,Tonbridge & Malling Borough Council,2/9/2022,0011043878/1,11043878, 3596.00,BML Building Services Ltd,01505000,,BRREP Response - General,Tonbridge Castle / CAB,M15KFP50001997,110069410
http://statistics.data.gov.uk/id/local-authority/29UP,Tonbridge & Malling Borough Council,2/9/2022,0011043879/1,11043879, 804.00,Loxton Installations Ltd,01278800,,BRREP IEE Testing,Angel Centre,M15HAP30001991,110069313
http://statistics.data.gov.uk/id/local-authority/29UP,Tonbridge & Malling Borough Council,2/9/2022,0011043880/1,11043880, 156.00,Loxton Installations Ltd,01278800,,BRREP Response - General,Tonbridge Castle / CAB,M15KFP50001997,110069396
http://statistics.data.gov.uk/id/local-authority/29UP,Tonbridge & Malling Borough Council,2/9/2022,0011043881/1,11043881, 172.00,Loxton Installations Ltd,01278800,,BRREP Response - General,Tonbridge Cemetery,M15HJP50001997,110069397
http://statistics.data.gov.uk/id/local-authority/29UP,Tonbridge & Malling Borough Council,2/9/2022,0011043882/1,11043882, 1983.00,Loxton Installations Ltd,01278800,,BRREP IEE Testing,Tonbridge Swimming Pool,M15HBP30001991,110069294
http://statistics.data.gov.uk/id/local-authority/29UP,Tonbridge & Malling Borough Council,2/9/2022,0011043883/1,11043883, 2545.00,Metcalfe Briggs Surveyors,01816900,,BRREP General Maintenance,Land Review,M15MAP49901900,110069236
http://statistics.data.gov.uk/id/local-authority/29UP,Tonbridge & Malling Borough Council,2/9/2022,0011043884/1,11043884, 180.00,Marine And Industrial Pump Services,00062800,,BRREP Servicing - pool plant,Larkfield Leisure Centre,M15HDP20001910,110069416
http://statistics.data.gov.uk/id/local-authority/29UP,Tonbridge & Malling Borough Council,2/9/2022,0011043885/1,11043885, 335.02,HOB Mechanical Services Ltd,01706000,,BRREP Fire Damper Testing,Angel Centre,M15HAP30001970,110069328
http://statistics.data.gov.uk/id/local-authority/29UP,Tonbridge & Malling Borough Council,2/9/2022,0011043885/2,11043885, 3500.00,HOB Mechanical Services Ltd,01706000,,BRREP Fire Damper Testing,Tonbridge Swimming Pool,M15HBP30001970,110069328
http://statistics.data.gov.uk/id/local-authority/29UP,Tonbridge & Malling Borough Council,2/9/2022,0011043885/3,11043885, 1200.00,HOB Mechanical Services Ltd,01706000,,BRREP Fire Damper Testing,Larkfield Leisure Centre,M15HDP30001970,110069328
http://statistics.data.gov.uk/id/local-authority/29UP,Tonbridge & Malling Borough Council,2/9/2022,0011043886/1,11043886, 180.00,West Country Doors (London),00936500,,BRREP Servicing-entrance doors,Gibson Building West,M15KBP20001927,110069377
http://statistics.data.gov.uk/id/local-authority/29UP,Tonbridge & Malling Borough Council,2/9/2022,0011043887/1,11043887, 186.00,Thomson Snell & Passmore,00101700,,Legal Fees,Legal Sals&Overheads,D01ARDR0044002,
http://statistics.data.gov.uk/id/local-authority/29UP,Tonbridge & Malling Borough Council,2/9/2022,0011043888/1,11043888, 1470.00,Bevan Brittan LLP,01096600,,Legal Fees,Legal Sals&Overheads,D01ARDR0044002,
http://statistics.data.gov.uk/id/local-authority/29UP,Tonbridge & Malling Borough Council,2/9/2022,0011043889/1,11043889, 400.00,Disclosure & Barring Service,00865900,,Purchases,Licences - Fee Paying,H27SH000040101,
http://statistics.data.gov.uk/id/local-authority/29UP,Tonbridge & Malling Borough Council,2/9/2022,0011043890/1,11043890, 1104.81,Tonbridge Town Team,01485900,,Re-opening High Streets,Eco Dev & Reg Gen Bus Support,D52TDCV1948076,
http://statistics.data.gov.uk/id/local-authority/29UP,Tonbridge & Malling Borough Council,2/9/2022,0011043891/1,11043891, 19.10,Oasis Group  - Box-It South East,00966800,931579211,Purchases,Electoral Registration,D31MF000040101,
http://statistics.data.gov.uk/id/local-authority/29UP,Tonbridge & Malling Borough Council,2/9/2022,0011043892/3,11043892, 1134.00,Venn Group Ltd,00914300,,Temporary Staff,Legal Sals&Overheads,D01ARDR0011300,
http://statistics.data.gov.uk/id/local-authority/29UP,Tonbridge & Malling Borough Council,2/9/2022,0011043893/3,11043893, 714.00,Venn Group Ltd,00914300,,Temporary Staff,Legal Sals&Overheads,D01ARDR0011300,
http://statistics.data.gov.uk/id/local-authority/29UP,Tonbridge & Malling Borough Council,2/9/2022,0011043894/3,11043894, 873.90,Venn Group Ltd,00914300,,Temporary Staff,Legal Sals&Overheads,D01ARDR0011300,
http://statistics.data.gov.uk/id/local-authority/29UP,Tonbridge & Malling Borough Council,2/9/2022,0011043895/3,11043895, 652.50,Venn Group Ltd,00914300,,Temporary Staff,Legal Sals&Overheads,D01ARDR0011300,
http://statistics.data.gov.uk/id/local-authority/29UP,Tonbridge & Malling Borough Council,2/9/2022,0011043897/1,11043897, 240.00,Jade Consultancy,01834300,,H&CG Fund Council Specific,Eco Dev & Reg Gen Bus Support,D52TD000047027,
http://statistics.data.gov.uk/id/local-authority/29UP,Tonbridge & Malling Borough Council,2/9/2022,0011043898/1,11043898, 155.40,Scottish Water Business Stream Ltd,01641100,,Estate Management Charge,Land Review,D40PS000020400,
http://statistics.data.gov.uk/id/local-authority/29UP,Tonbridge & Malling Borough Council,2/9/2022,0011043899/1,11043899, 3.20,Royal Mail,00086200,,Purchases,Mailsort Stock Account,K37BR000001002,
http://statistics.data.gov.uk/id/local-authority/29UP,Tonbridge & Malling Borough Council,2/9/2022,0011043899/2,11043899, 1707.62,Royal Mail,00086200,,Purchases,Mailsort Stock Account,K37BR000001002,
http://statistics.data.gov.uk/id/local-authority/29UP,Tonbridge & Malling Borough Council,2/9/2022,0011043900/1,11043900, 60.00,Sevenoaks District Council,01252500,,Hospitality,Mayoral & Other Member Support,D29LX000048003,
http://statistics.data.gov.uk/id/local-authority/29UP,Tonbridge & Malling Borough Council,2/9/2022,0011043901/1,11043901, 30.00,The Mayor's Charity Appeal,00943800,,Hospitality,Mayoral & Other Member Support,D29LX000048003,
http://statistics.data.gov.uk/id/local-authority/29UP,Tonbridge & Malling Borough Council,2/9/2022,0011043903/1,11043903, 236.89,Kohler Mira Limited,00902600,779588443,BRREP Servicing - pool plant,Larkfield Leisure Centre,M15HDP20001910,
http://statistics.data.gov.uk/id/local-authority/29UP,Tonbridge & Malling Borough Council,2/9/2022,0011043904/1,11043904, 70.00,The Mayor's Charity Fund,01297900,,Hospitality,Mayoral & Other Member Support,D29LX000048003,
http://statistics.data.gov.uk/id/local-authority/29UP,Tonbridge & Malling Borough Council,2/9/2022,0011043905/3,11043905, 1156.96,Ricoh UK Ltd,01402300,,Maintenance - General,Printing,D22GA000040135,
http://statistics.data.gov.uk/id/local-authority/29UP,Tonbridge & Malling Borough Council,2/9/2022,0011043906/3,11043906, 225.00,Ricoh UK Ltd,01402300,,Maintenance - General,Printing,D22GA000040135,
http://statistics.data.gov.uk/id/local-authority/29UP,Tonbridge & Malling Borough Council,2/9/2022,0011043907/1,11043907, 92.35,Royal Mail,00086200,,Postages - Business Reply,Electoral Registration,D31MF000045003,
http://statistics.data.gov.uk/id/local-authority/29UP,Tonbridge & Malling Borough Council,2/9/2022,0011043907/2,11043907, 7.68,Royal Mail,00086200,,Purchases,Business Reply Stock Account,K14AT000001002,
http://statistics.data.gov.uk/id/local-authority/29UP,Tonbridge & Malling Borough Council,2/9/2022,0011043908/1,11043908, 2749.02,Royal Mail,00086200,,Purchases,Mailsort Stock Account,K37BR000001002,
http://statistics.data.gov.uk/id/local-authority/29UP,Tonbridge & Malling Borough Council,2/9/2022,0011043908/2,11043908, 6.40,Royal Mail,00086200,,Purchases,Mailsort Stock Account,K37BR000001002,
http://statistics.data.gov.uk/id/local-authority/29UP,Tonbridge & Malling Borough Council,2/9/2022,0011043908/3,11043908, 7.64,Royal Mail,00086200,,Purchases,Mailsort Stock Account,K37BR000001002,
http://statistics.data.gov.uk/id/local-authority/29UP,Tonbridge & Malling Borough Council,2/9/2022,0011043909/1,11043909, 230.00,Financial Data Management  Plc,00035400,,Stationery,Electoral Registration,D31MF000043003,
http://statistics.data.gov.uk/id/local-authority/29UP,Tonbridge & Malling Borough Council,2/9/2022,0011043910/1,11043910, 263.68,Scottish Water Business Stream Ltd,01641100,,Sewerage Charges,Buildings,D21FEDD6024003,
http://statistics.data.gov.uk/id/local-authority/29UP,Tonbridge & Malling Borough Council,2/9/2022,0011043911/1,11043911, 85.68,KM Media Group Ltd,00053900,,Advertising General,Licences - Fee Paying,H27SHZ99944216,110069405
http://statistics.data.gov.uk/id/local-authority/29UP,Tonbridge & Malling Borough Council,2/9/2022,0011043912/1,11043912, 192.78,KM Media Group Ltd,00053900,,Advertising General,Licences - Fee Paying,H27SHZ99944216,110069405
http://statistics.data.gov.uk/id/local-authority/29UP,Tonbridge & Malling Borough Council,2/9/2022,0012008239/3,12008239, 478.82,Six Degrees Managed Data (NWF) ltd,01256900,,Telephones - Rentals,General Admin Telephones,D24GT000045005,
http://statistics.data.gov.uk/id/local-authority/29UP,Tonbridge & Malling Borough Council,2/9/2022,0012008240/1,12008240, 49.00,Get It Repaired,01631300,287357752,Maintenance - General,Security Services Management,E09GA000040135,410032117
http://statistics.data.gov.uk/id/local-authority/29UP,Tonbridge & Malling Borough Council,2/9/2022,0012008241/3,12008241, 110.53,Sectigo Limited - European Office,01214500,,Purchases,Information Technology,D27KD000040101,
http://statistics.data.gov.uk/id/local-authority/29UP,Tonbridge & Malling Borough Council,2/9/2022,0012008242/1,12008242, 394.80,Phoenix Software Ltd,00077400,755349015,Software Hire & Support,Information Technology,D27KD000044059,410032120
http://statistics.data.gov.uk/id/local-authority/29UP,Tonbridge & Malling Borough Council,2/9/2022,0012008242/2,12008242, 10.00,Phoenix Software Ltd,00077400,755349015,Delivery Expenses,Information Technology,D27KD000044069,410032120
http://statistics.data.gov.uk/id/local-authority/29UP,Tonbridge & Malling Borough Council,2/9/2022,0012008243/3,12008243, 1506.01,NTT Cloud Communications UK Ltd,01794600,,Software Hire & Support,Information Technology,D27KD000044059,
http://statistics.data.gov.uk/id/local-authority/29UP,Tonbridge & Malling Borough Council,2/9/2022,0012008244/3,12008244, 11.03,Daisy Communications,01068100,,Telephones - General,Leybourne Lakes Country Park,B22LK000045010,
http://statistics.data.gov.uk/id/local-authority/29UP,Tonbridge & Malling Borough Council,2/9/2022,0012008244/4,12008244, 3.18,Daisy Communications,01068100,,Telephones - Rentals,General Admin Telephones,D24GT000045005,
http://statistics.data.gov.uk/id/local-authority/29UP,Tonbridge & Malling Borough Council,2/9/2022,0012008244/5,12008244, 252.91,Daisy Communications,01068100,,Telephones - Call Costs,General Admin Telephones,D24GT000045006,
http://statistics.data.gov.uk/id/local-authority/29UP,Tonbridge & Malling Borough Council,2/9/2022,0012008244/6,12008244, 84.88,Daisy Communications,01068100,,Leased Lines & Modems,Information Technology,D27KD000045011,
http://statistics.data.gov.uk/id/local-authority/29UP,Tonbridge & Malling Borough Council,2/9/2022,0012008244/7,12008244, 65.88,Daisy Communications,01068100,,Maintenance - General,Security Services Management,E09GA000040135,
http://statistics.data.gov.uk/id/local-authority/29UP,Tonbridge & Malling Borough Council,2/9/2022,0012008245/1,12008245, 105.00,Get It Repaired,01631300,287357752,Maintenance - General,Security Services Management,E09GA000040135,410032117
http://statistics.data.gov.uk/id/local-authority/29UP,Tonbridge & Malling Borough Council,2/9/2022,0012008246/1,12008246, 75.00,Get It Repaired,01631300,287357752,Maintenance - Micros,Information Technology,D27KD000040140,410032124
http://statistics.data.gov.uk/id/local-authority/29UP,Tonbridge & Malling Borough Council,2/9/2022,0021037722/3,21037722, 268.16,Kent County Council,00322500,,Other Expenses,Food & Safety - Food Safety,H35SX000048010,
http://statistics.data.gov.uk/id/local-authority/29UP,Tonbridge & Malling Borough Council,2/9/2022,0021037727/1,21037727, 400.00,Arnold & Court Ltd,01411300,,Maintenance of Grounds,Sports Grounds,B13ET000020402,210056479
http://statistics.data.gov.uk/id/local-authority/29UP,Tonbridge & Malling Borough Council,2/9/2022,0021037728/1,21037728, 550.00,Arnold & Court Ltd,01411300,,Maintenance of Grounds,Open Spaces & Amenity Areas,B22LE000020402,210056572
http://statistics.data.gov.uk/id/local-authority/29UP,Tonbridge & Malling Borough Council,2/9/2022,0021037729/1,21037729, 410.00,Arnold & Court Ltd,01411300,,Maintenance of Grounds,Tonbridge Castle Grounds,B22LB000020402,210056586
http://statistics.data.gov.uk/id/local-authority/29UP,Tonbridge & Malling Borough Council,2/9/2022,0021037729/2,21037729, 60.00,Arnold & Court Ltd,01411300,,Maintenance of Grounds,Open Spaces & Amenity Areas,B22LE000020402,210056586
http://statistics.data.gov.uk/id/local-authority/29UP,Tonbridge & Malling Borough Council,2/9/2022,0021037729/3,21037729, 60.00,Arnold & Court Ltd,01411300,,Maintenance of Play Equipment,Open Spaces & Amenity Areas,B22LE000020503,210056586
http://statistics.data.gov.uk/id/local-authority/29UP,Tonbridge & Malling Borough Council,2/9/2022,0021037730/1,21037730, 640.00,Atlas Facilities Managment Limited ,01075900,,Gates / Security,Patrolling,B22LF000044017,210056489
http://statistics.data.gov.uk/id/local-authority/29UP,Tonbridge & Malling Borough Council,2/9/2022,0021037731/3,21037731, 9.65,B&Q/Screwfix Direct(TradeUKAccount),00141300,,Protective Clothing,Patrolling,B22LF000042001,
http://statistics.data.gov.uk/id/local-authority/29UP,Tonbridge & Malling Borough Council,2/9/2022,0021037732/3,21037732, 31.96,B&Q/Screwfix Direct(TradeUKAccount),00141300,,Protective Clothing,Patrolling,B22LF000042001,
http://statistics.data.gov.uk/id/local-authority/29UP,Tonbridge & Malling Borough Council,2/9/2022,0021037733/1,21037733, 40.87,Castle Water,01696500,,Water Charges (Metered),Cemetery,B26MP000024001,
http://statistics.data.gov.uk/id/local-authority/29UP,Tonbridge & Malling Borough Council,2/9/2022,0021037736/1,21037736, 120.00,Flash Mobile Welding Services Ltd,01189200,,Maintenance of Grounds,Sports Grounds,B13ET000020402,210056653
http://statistics.data.gov.uk/id/local-authority/29UP,Tonbridge & Malling Borough Council,2/9/2022,0021037737/1,21037737, 6000.00,Medway Valley Countryside PartnershipKCC,00780000,,Medway Valley Partnership,Countryside/Woodland Mgt,B22LH000051013,210056636
http://statistics.data.gov.uk/id/local-authority/29UP,Tonbridge & Malling Borough Council,2/9/2022,0021037737/2,21037737, 625.00,Medway Valley Countryside PartnershipKCC,00780000,,Medway Valley Partnership,Countryside/Woodland Mgt,B22LH000051013,210056636
http://statistics.data.gov.uk/id/local-authority/29UP,Tonbridge & Malling Borough Council,2/9/2022,0021037738/1,21037738, 389.00,Keep Britain Tidy,00519900,,Advertising General,Haysden Country Park,B22LC000044216,210056625
http://statistics.data.gov.uk/id/local-authority/29UP,Tonbridge & Malling Borough Council,2/9/2022,0021037739/1,21037739, 50.00,Monitor Pest Control Ltd,01476700,,Maintenance of Grounds,Open Spaces & Amenity Areas,B22LE000020402,210056519
http://statistics.data.gov.uk/id/local-authority/29UP,Tonbridge & Malling Borough Council,2/9/2022,0021037740/1,21037740, 104.32,Fenland Leisure Products Ltd,01675100,,Maintenance of Play Equipment,Open Spaces & Amenity Areas,B22LE000020503,210056602
http://statistics.data.gov.uk/id/local-authority/29UP,Tonbridge & Malling Borough Council,2/9/2022,0021037741/3,21037741, 28.10,B&Q/Screwfix Direct(TradeUKAccount),00141300,,Protective Clothing,Patrolling,B22LF000042001,
http://statistics.data.gov.uk/id/local-authority/29UP,Tonbridge & Malling Borough Council,2/9/2022,0021037742/3,21037742, 370.90,Tunbridge Wells Borough Council,00844600,,Other Expenses,Refuse Collection,H20SA000048010,
http://statistics.data.gov.uk/id/local-authority/29UP,Tonbridge & Malling Borough Council,2/9/2022,0021037743/1,21037743, 544.98,G.L. & R.G. Bourne,00737500,,Gates / Security,Haysden Country Park,B22LC000044017,210056214
http://statistics.data.gov.uk/id/local-authority/29UP,Tonbridge & Malling Borough Council,2/9/2022,0021037744/1,21037744, 6.00,G.L. & R.G. Bourne,00737500,,Gates / Security,Haysden Country Park,B22LC000044017,210056214
http://statistics.data.gov.uk/id/local-authority/29UP,Tonbridge & Malling Borough Council,2/9/2022,0021037745/1,21037745, 1000.00,Aylesford Parish Council,00007300,,Borough Christmas Lighting,Eco Dev & Reg Boro Chris Light,D52TE000047014,
http://statistics.data.gov.uk/id/local-authority/29UP,Tonbridge & Malling Borough Council,2/9/2022,0021037746/1,21037746, 2397.50,The Snodland Partnership,00993200,,Borough Christmas Lighting,Eco Dev & Reg Boro Chris Light,D52TE000047014,
http://statistics.data.gov.uk/id/local-authority/29UP,Tonbridge & Malling Borough Council,2/9/2022,0021037747/1,21037747, 53.97,KCS,00054200,,Purchases,Haysden Country Park,B22LC000040101,210056656
http://statistics.data.gov.uk/id/local-authority/29UP,Tonbridge & Malling Borough Council,2/9/2022,0021037748/1,21037748, 4895.00,Valley Landscape Management Provincial,01054600,,Contract Payments,LLCP Path Improvements,P05FH000009904,210056607
http://statistics.data.gov.uk/id/local-authority/29UP,Tonbridge & Malling Borough Council,2/9/2022,0021037749/1,21037749, 14000.00,Valley Landscape Management Provincial,01054600,,Contract Payments,LLCP Path Improvements,P05FH000009904,210056609
http://statistics.data.gov.uk/id/local-authority/29UP,Tonbridge & Malling Borough Council,2/9/2022,0022026249/1,22026249, 5189.47,Alfa Electrical LTD Inc AVCO Maintenance,01642200,,Other Expenses,Disabled Facilities Grant Mand,P03AC000009908,
http://statistics.data.gov.uk/id/local-authority/29UP,Tonbridge & Malling Borough Council,2/9/2022,0022026250/1,22026250, 747.29,Peabody South East LTD,01680900,,Other Expenses,Disabled Facilities Grant Mand,P03AC000009908,
http://statistics.data.gov.uk/id/local-authority/29UP,Tonbridge & Malling Borough Council,2/9/2022,0022026251/1,22026251, 2865.00,Higher Elevation LTD,01298700,,Other Expenses,Disabled Facilities Grant Mand,P03AC000009908,
http://statistics.data.gov.uk/id/local-authority/29UP,Tonbridge & Malling Borough Council,2/9/2022,0022026252/1,22026252, 340.56,Peabody South East LTD,01680900,,Other Expenses,Disabled Facilities Grant Mand,P03AC000009908,
http://statistics.data.gov.uk/id/local-authority/29UP,Tonbridge & Malling Borough Council,2/9/2022,0022026253/1,22026253, 2226.57,The Care Group-Housing & Care Trust,01699600,,Temporary Accommodation,Homelessness,C01AA000044051,
http://statistics.data.gov.uk/id/local-authority/29UP,Tonbridge & Malling Borough Council,2/9/2022,0022026254/1,22026254, 29453.00,Social & Community Care,01768400,,Temporary Accommodation,Homelessness,C01AA000044051,
http://statistics.data.gov.uk/id/local-authority/29UP,Tonbridge & Malling Borough Council,2/9/2022,0022026256/1,22026256, 3733.01,Clarion Housing,01776300,,Temporary Accommodation,Homelessness,C01AA000044051,
http://statistics.data.gov.uk/id/local-authority/29UP,Tonbridge & Malling Borough Council,2/9/2022,0022026257/1,22026257, 2070.00,Graffiti Busters Ltd,00194700,,Re-opening High Streets,Eco Dev & Reg Gen Bus Support,D52TDCV1948076,220003180
http://statistics.data.gov.uk/id/local-authority/29UP,Tonbridge & Malling Borough Council,2/9/2022,0022026258/3,22026258, 876.00,Green Recycling LTD,01563000,,Paper Recycling,Dry Recycling,H34SR000054024,
http://statistics.data.gov.uk/id/local-authority/29UP,Tonbridge & Malling Borough Council,2/9/2022,0022026259/1,22026259, 7897.00,Premier Property Providers,01785400,,Temporary Accommodation,Homelessness,C01AA000044051,
http://statistics.data.gov.uk/id/local-authority/29UP,Tonbridge & Malling Borough Council,2/9/2022,0022026260/7,22026260, 10044.00,Simon Niblett Lettings,00072600,,Temporary Accommodation,Homelessness,C01AA000044051,
http://statistics.data.gov.uk/id/local-authority/29UP,Tonbridge & Malling Borough Council,2/9/2022,0022026261/3,22026261, 3410.00,Simon Niblett Lettings,00072600,,Temporary Accommodation,Homelessness,C01AA000044051,
http://statistics.data.gov.uk/id/local-authority/29UP,Tonbridge & Malling Borough Council,2/9/2022,0022026262/1,22026262, 13266.00,Less Homeless Ltd,01489300,,Temporary Accommodation,Homelessness,C01AA000044051,
http://statistics.data.gov.uk/id/local-authority/29UP,Tonbridge & Malling Borough Council,2/9/2022,0022026263/1,22026263, 5107.00,Simply Rented Ltd ,01691400,,Temporary Accommodation,Homelessness,C01AA000044051,
http://statistics.data.gov.uk/id/local-authority/29UP,Tonbridge & Malling Borough Council,2/9/2022,0022026264/1,22026264, 1550.00,Smart Property Professionals,01815100,,Temporary Accommodation,Homelessness,C01AA000044051,
http://statistics.data.gov.uk/id/local-authority/29UP,Tonbridge & Malling Borough Council,2/9/2022,0022026265/3,22026265, 13347.00,SPA CAFFE LIMITED,00127100,,Temporary Accommodation,Homelessness,C01AA000044051,
http://statistics.data.gov.uk/id/local-authority/29UP,Tonbridge & Malling Borough Council,2/9/2022,0022026266/1,22026266, 391.51,Scottish Water Business Stream Ltd,01641100,,Sewerage Charges,Public Conveniences,H22SCH01224003,
http://statistics.data.gov.uk/id/local-authority/29UP,Tonbridge & Malling Borough Council,2/9/2022,0022026267/1,22026267, 3000.00,Borough Green Parish Council,00011000,,Contributions to Other Bodies,Public Conveniences,H22SC000048018,
http://statistics.data.gov.uk/id/local-authority/29UP,Tonbridge & Malling Borough Council,2/9/2022,0022026268/1,22026268, 3518.50,House to Home Lettings Ltd ,01647600,,Temporary Accommodation,Homelessness,C01AA000044051,
http://statistics.data.gov.uk/id/local-authority/29UP,Tonbridge & Malling Borough Council,2/9/2022,0022026269/1,22026269, 232.46,Maidstone Borough Council,01173700,,Council Tax,Homelessness,C01AAMAUN23002,
http://statistics.data.gov.uk/id/local-authority/29UP,Tonbridge & Malling Borough Council,2/9/2022,0022026270/1,22026270, 541.79,South East Water Ltd,00572200,,Water Charges (Metered),Homelessness,C01AAMAUN24001,
http://statistics.data.gov.uk/id/local-authority/29UP,Tonbridge & Malling Borough Council,2/9/2022,0022026271/1,22026271, 5952.00,Kent Accommodation Ltd,01722000,,Temporary Accommodation,Homelessness,C01AA000044051,
http://statistics.data.gov.uk/id/local-authority/29UP,Tonbridge & Malling Borough Council,2/9/2022,0022026272/1,22026272, 2400.00,Dolphin Stairlifts,00698900,,Other Expenses,Disabled Facilities Grant Mand,P03AC000009908,
http://statistics.data.gov.uk/id/local-authority/29UP,Tonbridge & Malling Borough Council,2/9/2022,0031018247/1,31018247, 2400.00,Arnold & Court Ltd,01411300,,Re-opening High Streets,Eco Dev & Reg Gen Bus Support,D52TDCV1948076,210056409
http://statistics.data.gov.uk/id/local-authority/29UP,Tonbridge & Malling Borough Council,2/9/2022,0031018452/3,31018452, 34.12,REDACTED PERSONAL DATA,01576900,,Purchases,Parking Off-Street,E10HA000040101,
http://statistics.data.gov.uk/id/local-authority/29UP,Tonbridge & Malling Borough Council,2/9/2022,0031018455/3,31018455, 1203.78,CDER Group,01773300,,Adjudication & Enforcement Ser,Parking Off-Street,E10HA000044230,
http://statistics.data.gov.uk/id/local-authority/29UP,Tonbridge & Malling Borough Council,2/9/2022,0031018456/3,31018456, 65.47,Shell U.K. Oil Products Limited,01673300,,"Petrol, Diesel & Oil",Patrolling,B22LF000030106,
http://statistics.data.gov.uk/id/local-authority/29UP,Tonbridge & Malling Borough Council,2/9/2022,0031018456/4,31018456, 87.05,Shell U.K. Oil Products Limited,01673300,,"Petrol, Diesel & Oil",Parking Off-Street,E10HA000030106,
http://statistics.data.gov.uk/id/local-authority/29UP,Tonbridge & Malling Borough Council,2/9/2022,0031018456/5,31018456, 87.04,Shell U.K. Oil Products Limited,01673300,,"Petrol, Diesel & Oil",Parking On-Street,E10HD000030106,
http://statistics.data.gov.uk/id/local-authority/29UP,Tonbridge & Malling Borough Council,2/9/2022,0031018457/3,31018457, 65.47,Shell U.K. Oil Products Limited,01673300,,"Petrol, Diesel & Oil",Patrolling,B22LF000030106,
http://statistics.data.gov.uk/id/local-authority/29UP,Tonbridge & Malling Borough Council,2/9/2022,0031018457/4,31018457, 193.76,Shell U.K. Oil Products Limited,01673300,,"Petrol, Diesel & Oil",Parking Off-Street,E10HA000030106,
http://statistics.data.gov.uk/id/local-authority/29UP,Tonbridge & Malling Borough Council,2/9/2022,0031018457/5,31018457, 193.76,Shell U.K. Oil Products Limited,01673300,,"Petrol, Diesel & Oil",Parking On-Street,E10HD000030106,
http://statistics.data.gov.uk/id/local-authority/29UP,Tonbridge & Malling Borough Council,2/9/2022,0031018458/1,31018458, 768.97,Chroma Vision Ltd,00891600,,Initial Furniture & Equipment,Cap Ren CCTV,P01BA000009906,310042770
http://statistics.data.gov.uk/id/local-authority/29UP,Tonbridge & Malling Borough Council,2/9/2022,0031018459/1,31018459, 1040.00,Chroma Vision Ltd,00891600,,Re-opening High Streets,Eco Dev & Reg Gen Bus Support,D52TDCV1948076,310042734
http://statistics.data.gov.uk/id/local-authority/29UP,Tonbridge & Malling Borough Council,2/9/2022,0031018460/1,31018460, 30.00,Flowbird Smart City UK Limited,00898700,,Maintenance - General,Parking Off-Street,E10HA000040135,310042751
http://statistics.data.gov.uk/id/local-authority/29UP,Tonbridge & Malling Borough Council,2/9/2022,0031018460/2,31018460, 48.60,Flowbird Smart City UK Limited,00898700,,Maintenance - General,Parking Off-Street,E10HA000040135,310042751
http://statistics.data.gov.uk/id/local-authority/29UP,Tonbridge & Malling Borough Council,2/9/2022,0031018460/3,31018460, 885.00,Flowbird Smart City UK Limited,00898700,,Maintenance - General,Parking Off-Street,E10HA000040135,310042751
http://statistics.data.gov.uk/id/local-authority/29UP,Tonbridge & Malling Borough Council,2/9/2022,0031018460/4,31018460, 32.40,Flowbird Smart City UK Limited,00898700,,Maintenance - General,Parking On-Street,E10HD000040135,310042751
http://statistics.data.gov.uk/id/local-authority/29UP,Tonbridge & Malling Borough Council,2/9/2022,0031018460/5,31018460, 590.00,Flowbird Smart City UK Limited,00898700,,Maintenance - General,Parking On-Street,E10HD000040135,310042751
http://statistics.data.gov.uk/id/local-authority/29UP,Tonbridge & Malling Borough Council,2/9/2022,0031018460/6,31018460, 20.00,Flowbird Smart City UK Limited,00898700,,Maintenance - General,Parking On-Street,E10HD000040135,310042751
http://statistics.data.gov.uk/id/local-authority/29UP,Tonbridge & Malling Borough Council,2/9/2022,0031018461/1,31018461, 991.20,Patrol,01189800,,Adjudication & Enforcement Ser,Parking Off-Street,E10HA000044230,
http://statistics.data.gov.uk/id/local-authority/29UP,Tonbridge & Malling Borough Council,2/9/2022,0031018463/1,31018463, 410.00,Wellden Land Surveys,01410600,,Professional Fees,Boro Drainage & Land Drainage,E20MA000044001,310042644
http://statistics.data.gov.uk/id/local-authority/29UP,Tonbridge & Malling Borough Council,2/9/2022,0031018464/1,31018464, 7.08,Npower Ltd,01675800,,Electricity,Parking Off-Street,E10HA000021002,
http://statistics.data.gov.uk/id/local-authority/29UP,Tonbridge & Malling Borough Council,2/9/2022,0031018464/2,31018464, 156.21,Npower Ltd,01675800,,Electricity,Parking Off-Street,E10HA000021002,
http://statistics.data.gov.uk/id/local-authority/29UP,Tonbridge & Malling Borough Council,2/9/2022,0031018465/1,31018465, 2.78,Npower Ltd,01675800,,Electricity,Parking Off-Street,E10HA000021002,
http://statistics.data.gov.uk/id/local-authority/29UP,Tonbridge & Malling Borough Council,2/9/2022,0031018465/2,31018465, 70.01,Npower Ltd,01675800,,Electricity,Parking Off-Street,E10HA000021002,
http://statistics.data.gov.uk/id/local-authority/29UP,Tonbridge & Malling Borough Council,2/9/2022,0031018466/1,31018466, 1.27,Npower Ltd,01675800,,Electricity,Parking Off-Street,E10HA000021002,
http://statistics.data.gov.uk/id/local-authority/29UP,Tonbridge & Malling Borough Council,2/9/2022,0031018466/2,31018466, 32.99,Npower Ltd,01675800,,Electricity,Parking Off-Street,E10HA000021002,
http://statistics.data.gov.uk/id/local-authority/29UP,Tonbridge & Malling Borough Council,2/9/2022,0032009397/1,32009397, 246.33,KM Media Group Ltd,00053900,,Advertising General,Development Management,A01ABZ99944216,320003374
http://statistics.data.gov.uk/id/local-authority/29UP,Tonbridge & Malling Borough Council,2/9/2022,0032009398/1,32009398, 3330.00,The Oyster Partnership,01196400,,Temporary Staff,Planning Sals&Overheads,D01AJDJ0111300,
http://statistics.data.gov.uk/id/local-authority/29UP,Tonbridge & Malling Borough Council,2/9/2022,0032009399/1,32009399, 1510.00,The Oyster Partnership,01196400,,Temporary Staff,Planning Sals&Overheads,D01AJDJ0111300,
http://statistics.data.gov.uk/id/local-authority/29UP,Tonbridge & Malling Borough Council,2/9/2022,0032009400/1,32009400, 1265.75,Tunbridge Wells Borough Council,00844600,,Temporary Staff,Planning Sals&Overheads,D01AJDJ0311300,
http://statistics.data.gov.uk/id/local-authority/29UP,Tonbridge & Malling Borough Council,2/9/2022,0041033930/1,41033930, 3.75,Stamps Direct Ltd,01361900,,Purchases,Finance Sals&Overheads,D01AFDF0440101,410032113
http://statistics.data.gov.uk/id/local-authority/29UP,Tonbridge & Malling Borough Council,2/9/2022,0041033930/2,41033930, 20.84,Stamps Direct Ltd,01361900,,Stationery,Finance Sals&Overheads,D01AFDF0443003,410032113
http://statistics.data.gov.uk/id/local-authority/29UP,Tonbridge & Malling Borough Council,2/9/2022,0041033931/3,41033931, 925.00,Morgan Hunt UK Ltd,01086900,,Temporary Staff,Finance Sals&Overheads,D01AFDF1111300,
http://statistics.data.gov.uk/id/local-authority/29UP,Tonbridge & Malling Borough Council,2/9/2022,0041033933/3,41033933, 980.50,Morgan Hunt UK Ltd,01086900,,Temporary Staff,Finance Sals&Overheads,D01AFDF1111300,
http://statistics.data.gov.uk/id/local-authority/29UP,Tonbridge & Malling Borough Council,2/9/2022,0041033934/3,41033934, 4322.13,Maidstone Borough Council,01173700,,Bailiffs Commission,Local Revenue & NNDR Collect,D41QA000044075,
http://statistics.data.gov.uk/id/local-authority/29UP,Tonbridge & Malling Borough Council,2/9/2022,0041033935/3,41033935, 1690.81,Maidstone Borough Council,01173700,,Bailiffs Commission,Local Revenue & NNDR Collect,D41QA000044075,
http://statistics.data.gov.uk/id/local-authority/29UP,Tonbridge & Malling Borough Council,2/9/2022,0041033936/3,41033936, 712.86,Rundle & Co Ltd,00087200,,Bailiffs Commission,Local Revenue & NNDR Collect,D41QA000044075,
http://statistics.data.gov.uk/id/local-authority/29UP,Tonbridge & Malling Borough Council,2/9/2022,0041033940/3,41033940, 925.00,Morgan Hunt UK Ltd,01086900,,Temporary Staff,Finance Sals&Overheads,D01AFDF1111300,
http://statistics.data.gov.uk/id/local-authority/29UP,Tonbridge & Malling Borough Council,2/9/2022,0041033941/3,41033941, 980.50,Morgan Hunt UK Ltd,01086900,,Temporary Staff,Finance Sals&Overheads,D01AFDF1111300,
http://statistics.data.gov.uk/id/local-authority/29UP,Tonbridge & Malling Borough Council,2/9/2022,0041033943/3,41033943, 986.81,Rundle & Co Ltd,00087200,,Bailiffs Commission,Local Revenue & NNDR Collect,D41QA000044075,
http://statistics.data.gov.uk/id/local-authority/29UP,Tonbridge & Malling Borough Council,2/9/2022,0041033945/3,41033945, 81.42,Adelante Software Limited,01393800,812115871,Credit Card Commission,Banking Arrangements,D43QK000044082,
http://statistics.data.gov.uk/id/local-authority/29UP,Tonbridge & Malling Borough Council,2/9/2022,0041033946/1,41033946, 33000.00,Tonbridge Baptist Church,00401200,,Charitable / Voluntary Organis,Grants & Payments to Vol Orgn,D37PACV1947005,
http://statistics.data.gov.uk/id/local-authority/29UP,Tonbridge & Malling Borough Council,2/9/2022,0041033950/1,41033950, 4000.00,Magadalene Ministry,01786700,,Charitable / Voluntary Organis,Grants & Payments to Vol Orgn,D37PACV1947005,
http://statistics.data.gov.uk/id/local-authority/29UP,Tonbridge & Malling Borough Council,2/9/2022,0041033951/1,41033951, 2000.00,Church of the Good Shepherd,01369900,,Charitable / Voluntary Organis,Grants & Payments to Vol Orgn,D37PACV1947005,
http://statistics.data.gov.uk/id/local-authority/29UP,Tonbridge & Malling Borough Council,2/9/2022,0041033952/1,41033952, 5700.00,St Johns Church - Hildenborough PC,01834400,,Charitable / Voluntary Organis,Grants & Payments to Vol Orgn,D37PACV1947005,
http://statistics.data.gov.uk/id/local-authority/29UP,Tonbridge & Malling Borough Council,2/9/2022,0041033953/1,41033953, 4000.00,Leybourne PC Fundraising,01834600,,Charitable / Voluntary Organis,Grants & Payments to Vol Orgn,D37PACV1947005,
http://statistics.data.gov.uk/id/local-authority/29UP,Tonbridge & Malling Borough Council,2/9/2022,0041033954/1,41033954, 495.00,KH Recruitment Ltd,01738900,,Temporary Staff,Finance Sals&Overheads,D01AFDF1111300,
http://statistics.data.gov.uk/id/local-authority/29UP,Tonbridge & Malling Borough Council,2/9/2022,0041033955/1,41033955, 695.00,Airey Consultancy Services Ltd,01760800,,Contract Services,Finance Sals&Overheads,D01AF000044005,
http://statistics.data.gov.uk/id/local-authority/29UP,Tonbridge & Malling Borough Council,2/9/2022,0041033959/3,41033959, 1853.70,Maidstone Borough Council,01173700,,Bailiffs Commission,Local Revenue & NNDR Collect,D41QA000044075,
http://statistics.data.gov.uk/id/local-authority/29UP,Tonbridge & Malling Borough Council,2/9/2022,0041033960/3,41033960, 2520.59,Maidstone Borough Council,01173700,,Bailiffs Commission,Local Revenue & NNDR Collect,D41QA000044075,
http://statistics.data.gov.uk/id/local-authority/29UP,Tonbridge & Malling Borough Council,2/9/2022,0041033961/3,41033961, 1700.00,LoCTA Ltd,01758700,,Tracing Services,Local Revenue & NNDR Collect,D41QA000044091,
http://statistics.data.gov.uk/id/local-authority/29UP,Tonbridge & Malling Borough Council,2/9/2022,0051008647/1,51008647, 145.00,Phoenix Health & Safety (UK) Ltd,01833300,,Ext Fees/Prof & Tech,Training,D10DCDE0213561,510010542
http://statistics.data.gov.uk/id/local-authority/29UP,Tonbridge & Malling Borough Council,2/9/2022,0051008648/1,51008648, 2808.00,Haymarket Media Group Limited,01197800,,Recruitment Advertising,Recruitment Expenses,D10DADJ0113110,510010535
http://statistics.data.gov.uk/id/local-authority/29UP,Tonbridge & Malling Borough Council,2/9/2022,0051008651/1,51008651, 125.00,The Empty Homes Network,01798100,,Ext Fees/Prof & Tech,Training,D10DCDV0913561,
http://statistics.data.gov.uk/id/local-authority/29UP,Tonbridge & Malling Borough Council,2/14/2022,0041033982/1,41033982, 396.81,King & Shaxson Investments,01411100,,Professional Fees,Treasury Management,D43QT000044001,
http://statistics.data.gov.uk/id/local-authority/29UP,Tonbridge & Malling Borough Council,2/15/2022,0041033939/10,41033939, 1079.50,National Westminster Bank Plc,00894500,,Contract Payments,TRSG Riverside Rivetment,P05DD000009904,
http://statistics.data.gov.uk/id/local-authority/29UP,Tonbridge & Malling Borough Council,2/15/2022,0041033939/2,41033939, 101.61,National Westminster Bank Plc,00894500,,Purchases,Information Technology,D27KD000040101,
http://statistics.data.gov.uk/id/local-authority/29UP,Tonbridge & Malling Borough Council,2/15/2022,0041033939/3,41033939, 20.83,National Westminster Bank Plc,00894500,,Maintenance - Micros,Information Technology,D27KD000040140,
http://statistics.data.gov.uk/id/local-authority/29UP,Tonbridge & Malling Borough Council,2/15/2022,0041033939/4,41033939, 11.28,National Westminster Bank Plc,00894500,,Software Hire & Support,Information Technology,D27KD000044059,
http://statistics.data.gov.uk/id/local-authority/29UP,Tonbridge & Malling Borough Council,2/15/2022,0041033939/5,41033939, 174.92,National Westminster Bank Plc,00894500,,Software Hire & Support,Information Technology,D27KD000044059,
http://statistics.data.gov.uk/id/local-authority/29UP,Tonbridge & Malling Borough Council,2/15/2022,0041033939/6,41033939, 5.99,National Westminster Bank Plc,00894500,,Delivery Expenses,Information Technology,D27KD000044069,
http://statistics.data.gov.uk/id/local-authority/29UP,Tonbridge & Malling Borough Council,2/15/2022,0041033939/7,41033939, 27.65,National Westminster Bank Plc,00894500,,Delivery Expenses,Information Technology,D27KD000044069,
http://statistics.data.gov.uk/id/local-authority/29UP,Tonbridge & Malling Borough Council,2/15/2022,0041033939/8,41033939, 7.54,National Westminster Bank Plc,00894500,,Estate Management Charge,Land Review,D40PS000020400,
http://statistics.data.gov.uk/id/local-authority/29UP,Tonbridge & Malling Borough Council,2/15/2022,0041033939/9,41033939, 19.68,National Westminster Bank Plc,00894500,,Sales,TIC Stock Account,K18AX000002002,
http://statistics.data.gov.uk/id/local-authority/29UP,Tonbridge & Malling Borough Council,2/15/2022,0041033989/1,41033989, 20.11,WorldPay Ltd,01402000,991280207,Credit Card Commission,Banking Arrangements,D43QK000044082,
http://statistics.data.gov.uk/id/local-authority/29UP,Tonbridge & Malling Borough Council,2/16/2022,0011043913/1,11043913, 453.80,KCS,00054200,,Purchases,Cleaning & Security,D21FDDD6040101,110069173
http://statistics.data.gov.uk/id/local-authority/29UP,Tonbridge & Malling Borough Council,2/16/2022,0011043914/1,11043914, 280.00,Absolute Creative Print,01801100,,Re-opening High Streets,Eco Dev & Reg Gen Bus Support,D52TDCV1948076,110069389
http://statistics.data.gov.uk/id/local-authority/29UP,Tonbridge & Malling Borough Council,2/16/2022,0011043915/1,11043915, 1750.00,Popi,00993500,,Information & Publicity,Information & Publicity,D32MJ000044076,110069283
http://statistics.data.gov.uk/id/local-authority/29UP,Tonbridge & Malling Borough Council,2/16/2022,0011043916/1,11043916, 322.52,HOB Mechanical Services Ltd,01706000,,BRREP Servicing - boilers,Larkfield Leisure Centre,M15HDP20001929,110069415
http://statistics.data.gov.uk/id/local-authority/29UP,Tonbridge & Malling Borough Council,2/16/2022,0011043917/1,11043917, 75.00,Green Fish Consulting,01627700,,BRREP General Maintenance,Land Review,M15MAP49901900,110069407
http://statistics.data.gov.uk/id/local-authority/29UP,Tonbridge & Malling Borough Council,2/16/2022,0011043918/1,11043918, 1130.00,PV Environmental Surveys,00987200,,BRREP General Maintenance,Shops & Maisonettes,M15NAP10001900,110069393
http://statistics.data.gov.uk/id/local-authority/29UP,Tonbridge & Malling Borough Council,2/16/2022,0011043919/1,11043919, 133.22,H20 Servicing Limited,00888800,808041553,BRREP Servicing - pool plant,Larkfield Leisure Centre,M15HDP20001910,110069409
http://statistics.data.gov.uk/id/local-authority/29UP,Tonbridge & Malling Borough Council,2/16/2022,0011043920/1,11043920, 740.00,G C Industrial Heating Services,00578100,,BRREP Servicing - boilers,Angel Centre,M15HAP20001929,110069406
http://statistics.data.gov.uk/id/local-authority/29UP,Tonbridge & Malling Borough Council,2/16/2022,0011043921/1,11043921, 416.00,BML Building Services Ltd,01505000,,BRREP Slipstream flume ovrhaul,Larkfield Leisure Centre,M15HDP20001954,110069422
http://statistics.data.gov.uk/id/local-authority/29UP,Tonbridge & Malling Borough Council,2/16/2022,0011043922/1,11043922, 150.00,BML Building Services Ltd,01505000,,BRREP Response - General,Larkfield Leisure Centre,M15HDP50001997,110069421
http://statistics.data.gov.uk/id/local-authority/29UP,Tonbridge & Malling Borough Council,2/16/2022,0011043923/1,11043923, 901.16,H20 Servicing Limited,00888800,808041553,BRREP Plant renewals,Larkfield Leisure Centre,M15HDP20001909,110069154
http://statistics.data.gov.uk/id/local-authority/29UP,Tonbridge & Malling Borough Council,2/16/2022,0011043924/1,11043924, 768.60,Venn Group Ltd,00914300,,Temporary Staff,Legal Sals&Overheads,D01ARDR0011300,
http://statistics.data.gov.uk/id/local-authority/29UP,Tonbridge & Malling Borough Council,2/16/2022,0011043925/1,11043925, 1092.00,Venn Group Ltd,00914300,,Temporary Staff,Legal Sals&Overheads,D01ARDR0011300,
http://statistics.data.gov.uk/id/local-authority/29UP,Tonbridge & Malling Borough Council,2/16/2022,0011043926/1,11043926, 84.00,The Mayor's Charity Account,00947300,,Hospitality,Mayoral & Other Member Support,D29LX000048003,
http://statistics.data.gov.uk/id/local-authority/29UP,Tonbridge & Malling Borough Council,2/16/2022,0011043927/1,11043927, 300.00,Driven to perfection,01541000,,Mayors Transport Allowance,Mayoral & Other Member Support,D29LX000034111,
http://statistics.data.gov.uk/id/local-authority/29UP,Tonbridge & Malling Borough Council,2/16/2022,0011043928/3,11043928, 350.00,Pure Employment Law,01835000,,Legal Fees,Legal Sals&Overheads,D01ARDR0044002,
http://statistics.data.gov.uk/id/local-authority/29UP,Tonbridge & Malling Borough Council,2/16/2022,0011043929/1,11043929, 20.00,Gravesham Borough Council,01106000,,Hospitality,Mayoral & Other Member Support,D29LX000048003,
http://statistics.data.gov.uk/id/local-authority/29UP,Tonbridge & Malling Borough Council,2/16/2022,0011043930/1,11043930, 70.00,Mayor of Medway's Charity,01297800,,Hospitality,Mayoral & Other Member Support,D29LX000048003,
http://statistics.data.gov.uk/id/local-authority/29UP,Tonbridge & Malling Borough Council,2/16/2022,0011043931/1,11043931, 43.14,Atlas Facilities Managment Limited ,01075900,,Miscellaneous Services,Cleaning & Security,D21FDDD6044015,
http://statistics.data.gov.uk/id/local-authority/29UP,Tonbridge & Malling Borough Council,2/16/2022,0011043932/1,11043932, 43.14,Atlas Facilities Managment Limited ,01075900,,Miscellaneous Services,Cleaning & Security,D21FDDD5044015,
http://statistics.data.gov.uk/id/local-authority/29UP,Tonbridge & Malling Borough Council,2/16/2022,0011043933/1,11043933, 695.25,Prosec General Security Ltd,00810600,,Office Security,Cleaning & Security,D21FD000044047,
http://statistics.data.gov.uk/id/local-authority/29UP,Tonbridge & Malling Borough Council,2/16/2022,0011043933/2,11043933, 2673.00,Prosec General Security Ltd,00810600,,Office Security,Tonbridge Gateway,D23TG000044047,
http://statistics.data.gov.uk/id/local-authority/29UP,Tonbridge & Malling Borough Council,2/16/2022,0011043934/1,11043934, 79.00,BML Building Services Ltd,01505000,,BRREP Response - General,Leybourne Lakes Country Park,M15HLP50001997,
http://statistics.data.gov.uk/id/local-authority/29UP,Tonbridge & Malling Borough Council,2/16/2022,0011043935/1,11043935, 1404.68,KCS,00054200,,Gas,Buildings,D21FEDD6021003,
http://statistics.data.gov.uk/id/local-authority/29UP,Tonbridge & Malling Borough Council,2/16/2022,0011043936/1,11043936, 4496.05,KCS,00054200,,Gas,Buildings,D21FEDD1021003,
http://statistics.data.gov.uk/id/local-authority/29UP,Tonbridge & Malling Borough Council,2/16/2022,0011043937/1,11043937, 18.64,Royal Mail,00086200,,Purchases,Mailsort Stock Account,K37BR000001002,
http://statistics.data.gov.uk/id/local-authority/29UP,Tonbridge & Malling Borough Council,2/16/2022,0011043937/2,11043937, 986.97,Royal Mail,00086200,,Purchases,Mailsort Stock Account,K37BR000001002,
http://statistics.data.gov.uk/id/local-authority/29UP,Tonbridge & Malling Borough Council,2/16/2022,0011043938/1,11043938, 70.00,Sevenoaks Mayor's Charity Account,01273000,,Hospitality,Mayoral & Other Member Support,D29LX000048003,
http://statistics.data.gov.uk/id/local-authority/29UP,Tonbridge & Malling Borough Council,2/16/2022,0011043939/1,11043939, 60.00,Sevenoaks District Council,01252500,,Hospitality,Mayoral & Other Member Support,D29LX000048003,
http://statistics.data.gov.uk/id/local-authority/29UP,Tonbridge & Malling Borough Council,2/16/2022,0011043940/3,11043940, 350.00,Sideways Media,01836200,,Marketing,Tonbridge Castle Gatehouse,B40TG000044215,
http://statistics.data.gov.uk/id/local-authority/29UP,Tonbridge & Malling Borough Council,2/16/2022,0011043941/1,11043941, 542.00,DORMA UK Ltd,00413500,549361128,BRREP Servicing-entrance doors,Angel Centre,M15HAP20001927,110069335
http://statistics.data.gov.uk/id/local-authority/29UP,Tonbridge & Malling Borough Council,2/16/2022,0012008247/1,12008247, 188.32,Kingsfield Computer Products Ltd,00942800,,Purchases,Information Technology,D27KD000040101,410032126
http://statistics.data.gov.uk/id/local-authority/29UP,Tonbridge & Malling Borough Council,2/16/2022,0012008247/2,12008247, 7.95,Kingsfield Computer Products Ltd,00942800,,Delivery Expenses,Information Technology,D27KD000044069,410032126
http://statistics.data.gov.uk/id/local-authority/29UP,Tonbridge & Malling Borough Council,2/16/2022,0012008248/3,12008248, 983.70,Rundle & Co Ltd,00087200,,Bailiffs Commission,Local Revenue & NNDR Collect,D41QA000044075,
http://statistics.data.gov.uk/id/local-authority/29UP,Tonbridge & Malling Borough Council,2/16/2022,0012008249/1,12008249, 646.99,KCS,00054200,,Leasing Charges,Multi Function Devices,D22GB000044038,
http://statistics.data.gov.uk/id/local-authority/29UP,Tonbridge & Malling Borough Council,2/16/2022,0012008250/1,12008250, 559.50,KCS,00054200,,Leasing Charges,Multi Function Devices,D22GB000044038,
http://statistics.data.gov.uk/id/local-authority/29UP,Tonbridge & Malling Borough Council,2/16/2022,0012008251/1,12008251, 127.83,KCS,00054200,,Leasing Charges,Multi Function Devices,D22GB000044038,
http://statistics.data.gov.uk/id/local-authority/29UP,Tonbridge & Malling Borough Council,2/16/2022,0012008252/1,12008252, 6.26,KCS,00054200,,Copy Charges,Multi Function Devices,D22GB000040125,
http://statistics.data.gov.uk/id/local-authority/29UP,Tonbridge & Malling Borough Council,2/16/2022,0012008252/2,12008252, 105.51,KCS,00054200,,Leasing Charges,Multi Function Devices,D22GB000044038,
http://statistics.data.gov.uk/id/local-authority/29UP,Tonbridge & Malling Borough Council,2/16/2022,0012008253/1,12008253, 0.02,KCS,00054200,,Copy Charges,Multi Function Devices,D22GB000040125,
http://statistics.data.gov.uk/id/local-authority/29UP,Tonbridge & Malling Borough Council,2/16/2022,0012008253/2,12008253, 130.63,KCS,00054200,,Leasing Charges,Multi Function Devices,D22GB000044038,
http://statistics.data.gov.uk/id/local-authority/29UP,Tonbridge & Malling Borough Council,2/16/2022,0012008254/1,12008254, 146.12,KCS,00054200,,Copy Charges,Multi Function Devices,D22GB000040125,
http://statistics.data.gov.uk/id/local-authority/29UP,Tonbridge & Malling Borough Council,2/16/2022,0012008254/2,12008254, 130.63,KCS,00054200,,Leasing Charges,Multi Function Devices,D22GB000044038,
http://statistics.data.gov.uk/id/local-authority/29UP,Tonbridge & Malling Borough Council,2/16/2022,0012008255/1,12008255, 22.97,KCS,00054200,,Copy Charges,Multi Function Devices,D22GB000040125,
http://statistics.data.gov.uk/id/local-authority/29UP,Tonbridge & Malling Borough Council,2/16/2022,0012008255/2,12008255, 122.61,KCS,00054200,,Leasing Charges,Multi Function Devices,D22GB000044038,
http://statistics.data.gov.uk/id/local-authority/29UP,Tonbridge & Malling Borough Council,2/16/2022,0012008256/1,12008256, 0.39,KCS,00054200,,Copy Charges,Multi Function Devices,D22GB000040125,
http://statistics.data.gov.uk/id/local-authority/29UP,Tonbridge & Malling Borough Council,2/16/2022,0012008256/2,12008256, 122.61,KCS,00054200,,Leasing Charges,Multi Function Devices,D22GB000044038,
http://statistics.data.gov.uk/id/local-authority/29UP,Tonbridge & Malling Borough Council,2/16/2022,0012008257/1,12008257, 4.57,KCS,00054200,,Copy Charges,Multi Function Devices,D22GB000040125,
http://statistics.data.gov.uk/id/local-authority/29UP,Tonbridge & Malling Borough Council,2/16/2022,0012008257/2,12008257, 122.61,KCS,00054200,,Leasing Charges,Multi Function Devices,D22GB000044038,
http://statistics.data.gov.uk/id/local-authority/29UP,Tonbridge & Malling Borough Council,2/16/2022,0012008258/1,12008258, 0.12,KCS,00054200,,Copy Charges,Multi Function Devices,D22GB000040125,
http://statistics.data.gov.uk/id/local-authority/29UP,Tonbridge & Malling Borough Council,2/16/2022,0012008258/2,12008258, 122.61,KCS,00054200,,Leasing Charges,Multi Function Devices,D22GB000044038,
http://statistics.data.gov.uk/id/local-authority/29UP,Tonbridge & Malling Borough Council,2/16/2022,0012008259/1,12008259, 115.21,KCS,00054200,,Copy Charges,Multi Function Devices,D22GB000040125,
http://statistics.data.gov.uk/id/local-authority/29UP,Tonbridge & Malling Borough Council,2/16/2022,0012008259/2,12008259, 130.63,KCS,00054200,,Leasing Charges,Multi Function Devices,D22GB000044038,
http://statistics.data.gov.uk/id/local-authority/29UP,Tonbridge & Malling Borough Council,2/16/2022,0012008260/1,12008260, 3.23,KCS,00054200,,Copy Charges,Multi Function Devices,D22GB000040125,
http://statistics.data.gov.uk/id/local-authority/29UP,Tonbridge & Malling Borough Council,2/16/2022,0012008260/2,12008260, 82.58,KCS,00054200,,Leasing Charges,Multi Function Devices,D22GB000044038,
http://statistics.data.gov.uk/id/local-authority/29UP,Tonbridge & Malling Borough Council,2/16/2022,0012008261/1,12008261, 91.95,KCS,00054200,,Leasing Charges,Multi Function Devices,D22GB000044038,
http://statistics.data.gov.uk/id/local-authority/29UP,Tonbridge & Malling Borough Council,2/16/2022,0012008262/1,12008262, 6.89,KCS,00054200,,Copy Charges,Multi Function Devices,D22GB000040125,
http://statistics.data.gov.uk/id/local-authority/29UP,Tonbridge & Malling Borough Council,2/16/2022,0012008262/2,12008262, 122.61,KCS,00054200,,Leasing Charges,Multi Function Devices,D22GB000044038,
http://statistics.data.gov.uk/id/local-authority/29UP,Tonbridge & Malling Borough Council,2/16/2022,0021037750/1,21037750, 74.71,G.L. & R.G. Bourne,00737500,,Gates / Security,Haysden Country Park,B22LC000044017,210056214
http://statistics.data.gov.uk/id/local-authority/29UP,Tonbridge & Malling Borough Council,2/16/2022,0021037751/1,21037751, 931.60,Hadlow Parish Council,00041400,,Borough Christmas Lighting,Eco Dev & Reg Boro Chris Light,D52TE000047014,
http://statistics.data.gov.uk/id/local-authority/29UP,Tonbridge & Malling Borough Council,2/16/2022,0021037753/1,21037753, 711.41,Landscape Services Ltd,00057600,,Maintenance of Grounds,Sports Grounds,B13ET000020402,210056527
http://statistics.data.gov.uk/id/local-authority/29UP,Tonbridge & Malling Borough Council,2/16/2022,0021037755/1,21037755, 431.66,Landscape Services Ltd,00057600,,Maintenance of Grounds,Sports Grounds,B13ET000020402,210056527
http://statistics.data.gov.uk/id/local-authority/29UP,Tonbridge & Malling Borough Council,2/16/2022,0021037756/3,21037756, 1065.23,KCC - L.A.S.E.R Commercial Services ,00184300,,Electricity,Leybourne Lakes Country Park,B22LK000021002,
http://statistics.data.gov.uk/id/local-authority/29UP,Tonbridge & Malling Borough Council,2/16/2022,0021037763/1,21037763, 560.00,Atlas Facilities Managment Limited ,01075900,,Gates / Security,Patrolling,B22LF000044017,210056489
http://statistics.data.gov.uk/id/local-authority/29UP,Tonbridge & Malling Borough Council,2/16/2022,0021037764/1,21037764, 8676.00,REDACTED PERSONAL DATA,01835900,,Other Expenses,Housing Assistance,P03AD000009908,
http://statistics.data.gov.uk/id/local-authority/29UP,Tonbridge & Malling Borough Council,2/16/2022,0022026273/3,22026273, 83.38,British Gas Services LTD,01260000,,Electricity,Homelessness,C01AAMAUN21002,
http://statistics.data.gov.uk/id/local-authority/29UP,Tonbridge & Malling Borough Council,2/16/2022,0022026275/3,22026275, 472.40,Countrystyle Group,00835900,781981681,Plastic Recycling,Dry Recycling,H34SR000054019,
http://statistics.data.gov.uk/id/local-authority/29UP,Tonbridge & Malling Borough Council,2/16/2022,0022026276/3,22026276, 1221.00,G2 Recruitment Solutions,01786000,,Temporary Staff,Env Hlth & Hsg Sals&Overheads,D01AVDV0711300,
http://statistics.data.gov.uk/id/local-authority/29UP,Tonbridge & Malling Borough Council,2/16/2022,0022026277/3,22026277, 763.31,G2 Recruitment Solutions,01786000,,Temporary Staff,Env Hlth & Hsg Sals&Overheads,D01AVDV0711300,
http://statistics.data.gov.uk/id/local-authority/29UP,Tonbridge & Malling Borough Council,2/16/2022,0022026278/3,22026278, 1221.00,G2 Recruitment Solutions,01786000,,Temporary Staff,Env Hlth & Hsg Sals&Overheads,D01AVDV0711300,
http://statistics.data.gov.uk/id/local-authority/29UP,Tonbridge & Malling Borough Council,2/16/2022,0022026279/3,22026279, 763.31,G2 Recruitment Solutions,01786000,,Temporary Staff,Env Hlth & Hsg Sals&Overheads,D01AVDV0711300,
http://statistics.data.gov.uk/id/local-authority/29UP,Tonbridge & Malling Borough Council,2/16/2022,0022026280/3,22026280, 1221.00,G2 Recruitment Solutions,01786000,,Temporary Staff,Env Hlth & Hsg Sals&Overheads,D01AVDV0711300,
http://statistics.data.gov.uk/id/local-authority/29UP,Tonbridge & Malling Borough Council,2/16/2022,0022026281/3,22026281, 763.31,G2 Recruitment Solutions,01786000,,Temporary Staff,Env Hlth & Hsg Sals&Overheads,D01AVDV0711300,
http://statistics.data.gov.uk/id/local-authority/29UP,Tonbridge & Malling Borough Council,2/16/2022,0022026282/3,22026282, 1221.00,G2 Recruitment Solutions,01786000,,Temporary Staff,Env Hlth & Hsg Sals&Overheads,D01AVDV0711300,
http://statistics.data.gov.uk/id/local-authority/29UP,Tonbridge & Malling Borough Council,2/16/2022,0022026283/3,22026283, 763.31,G2 Recruitment Solutions,01786000,,Temporary Staff,Env Hlth & Hsg Sals&Overheads,D01AVDV0711300,
http://statistics.data.gov.uk/id/local-authority/29UP,Tonbridge & Malling Borough Council,2/16/2022,0022026284/1,22026284, 3430.00,Graffiti Busters Ltd,00194700,,Re-opening High Streets,Eco Dev & Reg Gen Bus Support,D52TDCV1948076,220003189
http://statistics.data.gov.uk/id/local-authority/29UP,Tonbridge & Malling Borough Council,2/16/2022,0022026285/3,22026285, 1236.49,Vivid Resourcing,01773700,,Temporary Staff,Env Hlth & Hsg Sals&Overheads,D01AVDV0711300,
http://statistics.data.gov.uk/id/local-authority/29UP,Tonbridge & Malling Borough Council,2/16/2022,0022026286/3,22026286, 837.50,Vivid Resourcing,01773700,,Temporary Staff,Env Hlth & Hsg Sals&Overheads,D01AVDV0711300,
http://statistics.data.gov.uk/id/local-authority/29UP,Tonbridge & Malling Borough Council,2/16/2022,0022026287/3,22026287, 380.00,Monitor Pest Control Ltd,01476700,,Other Expenses,Pest Control,H24SE000048010,
http://statistics.data.gov.uk/id/local-authority/29UP,Tonbridge & Malling Borough Council,2/16/2022,0022026288/3,22026288, 1440.00,The Oyster Partnership,01196400,,Temporary Staff,Env Hlth & Hsg Sals&Overheads,D01AVDV0711300,
http://statistics.data.gov.uk/id/local-authority/29UP,Tonbridge & Malling Borough Council,2/16/2022,0022026289/1,22026289, 61783.00,Paramount Independent Property Suppliers,01595300,,Temporary Accommodation,Homelessness,C01AA000044051,
http://statistics.data.gov.uk/id/local-authority/29UP,Tonbridge & Malling Borough Council,2/16/2022,0022026290/1,22026290, 161.28,Brannan Thermometres & Instrumentation,01754200,,Maintenance - General,Environmental Protection,H32SN000040135,220003191
http://statistics.data.gov.uk/id/local-authority/29UP,Tonbridge & Malling Borough Council,2/16/2022,0022026291/3,22026291, 12888.58,Urbaser LTD,01718800,,Contract Payments,Refuse Collection,H20SA000054001,
http://statistics.data.gov.uk/id/local-authority/29UP,Tonbridge & Malling Borough Council,2/16/2022,0022026291/4,22026291, 74119.09,Urbaser LTD,01718800,,Contract Payments,Street Scene,H23SD000054001,
http://statistics.data.gov.uk/id/local-authority/29UP,Tonbridge & Malling Borough Council,2/16/2022,0022026291/5,22026291, 1647.43,Urbaser LTD,01718800,,Contract Payments,Dry Recycling,H34SR000054001,
http://statistics.data.gov.uk/id/local-authority/29UP,Tonbridge & Malling Borough Council,2/16/2022,0022026291/6,22026291, 282.36,Urbaser LTD,01718800,,Contract Payments,Food Recycling,H34SS000054001,
http://statistics.data.gov.uk/id/local-authority/29UP,Tonbridge & Malling Borough Council,2/16/2022,0022026291/7,22026291, 12403.89,Urbaser LTD,01718800,,Contract Payments,Garden Waste Recycling,H34ST000054001,
http://statistics.data.gov.uk/id/local-authority/29UP,Tonbridge & Malling Borough Council,2/16/2022,0022026292/10,22026292, 66.06,Urbaser LTD,01718800,,Maintenance of Grounds,Leybourne Lakes Country Park,B22LK000020402,
http://statistics.data.gov.uk/id/local-authority/29UP,Tonbridge & Malling Borough Council,2/16/2022,0022026292/11,22026292, 23.91,Urbaser LTD,01718800,,Dog Bin Emptying,Leybourne Lakes Country Park,B22LK000044012,
http://statistics.data.gov.uk/id/local-authority/29UP,Tonbridge & Malling Borough Council,2/16/2022,0022026292/12,22026292, 55.10,Urbaser LTD,01718800,,Maintenance of Grounds,Grounds,D21FF000020402,
http://statistics.data.gov.uk/id/local-authority/29UP,Tonbridge & Malling Borough Council,2/16/2022,0022026292/13,22026292, 168.53,Urbaser LTD,01718800,,Maintenance of Grounds,Parking Off-Street,E10HA000020402,
http://statistics.data.gov.uk/id/local-authority/29UP,Tonbridge & Malling Borough Council,2/16/2022,0022026292/14,22026292, 4288.11,Urbaser LTD,01718800,,Maintenance of Grounds,Parking Off-Street,E10HAE00120402,
http://statistics.data.gov.uk/id/local-authority/29UP,Tonbridge & Malling Borough Council,2/16/2022,0022026292/15,22026292, 461.92,Urbaser LTD,01718800,,Maintenance of Grounds,Parking Off-Street,E10HAE00220402,
http://statistics.data.gov.uk/id/local-authority/29UP,Tonbridge & Malling Borough Council,2/16/2022,0022026292/16,22026292, 288.97,Urbaser LTD,01718800,,Maintenance of Grounds,Parking Off-Street,E10HAE00320402,
http://statistics.data.gov.uk/id/local-authority/29UP,Tonbridge & Malling Borough Council,2/16/2022,0022026292/17,22026292, 1511.29,Urbaser LTD,01718800,,Maintenance of Grounds,Parking Off-Street,E10HAE00420402,
http://statistics.data.gov.uk/id/local-authority/29UP,Tonbridge & Malling Borough Council,2/16/2022,0022026292/18,22026292, 251.14,Urbaser LTD,01718800,,Maintenance of Grounds,Parking Off-Street,E10HAE00520402,
http://statistics.data.gov.uk/id/local-authority/29UP,Tonbridge & Malling Borough Council,2/16/2022,0022026292/19,22026292, 936.67,Urbaser LTD,01718800,,Maintenance of Grounds,Parking Off-Street,E10HAE00620402,
http://statistics.data.gov.uk/id/local-authority/29UP,Tonbridge & Malling Borough Council,2/16/2022,0022026292/20,22026292, 7.90,Urbaser LTD,01718800,,Maintenance of Grounds,Parking Off-Street,E10HAE00820402,
http://statistics.data.gov.uk/id/local-authority/29UP,Tonbridge & Malling Borough Council,2/16/2022,0022026292/21,22026292, 7.80,Urbaser LTD,01718800,,Maintenance of Grounds,Parking Off-Street,E10HAE00920402,
http://statistics.data.gov.uk/id/local-authority/29UP,Tonbridge & Malling Borough Council,2/16/2022,0022026292/22,22026292, 18.51,Urbaser LTD,01718800,,Maintenance of Grounds,Parking Off-Street,E10HAE01020402,
http://statistics.data.gov.uk/id/local-authority/29UP,Tonbridge & Malling Borough Council,2/16/2022,0022026292/23,22026292, 87.95,Urbaser LTD,01718800,,Maintenance of Grounds,Parking Off-Street,E10HAE01120402,
http://statistics.data.gov.uk/id/local-authority/29UP,Tonbridge & Malling Borough Council,2/16/2022,0022026292/24,22026292, 55.34,Urbaser LTD,01718800,,Maintenance of Grounds,Parking Off-Street,E10HAE01220402,
http://statistics.data.gov.uk/id/local-authority/29UP,Tonbridge & Malling Borough Council,2/16/2022,0022026292/25,22026292, 1049.30,Urbaser LTD,01718800,,Maintenance of Grounds,Parking Off-Street,E10HAE01320402,
http://statistics.data.gov.uk/id/local-authority/29UP,Tonbridge & Malling Borough Council,2/16/2022,0022026292/26,22026292, 79.80,Urbaser LTD,01718800,,Maintenance of Grounds,Parking Off-Street,E10HAE01420402,
http://statistics.data.gov.uk/id/local-authority/29UP,Tonbridge & Malling Borough Council,2/16/2022,0022026292/27,22026292, 245.93,Urbaser LTD,01718800,,Maintenance of Grounds,Parking Off-Street,E10HAE01520402,
http://statistics.data.gov.uk/id/local-authority/29UP,Tonbridge & Malling Borough Council,2/16/2022,0022026292/28,22026292, 264.50,Urbaser LTD,01718800,,Maintenance of Grounds,Parking Off-Street,E10HAE01620402,
http://statistics.data.gov.uk/id/local-authority/29UP,Tonbridge & Malling Borough Council,2/16/2022,0022026292/29,22026292, 780.85,Urbaser LTD,01718800,,Maintenance of Grounds,Parking Off-Street,E10HAE01720402,
http://statistics.data.gov.uk/id/local-authority/29UP,Tonbridge & Malling Borough Council,2/16/2022,0022026292/3,22026292, 354.43,Urbaser LTD,01718800,,Maintenance of Grounds,Sports Grounds,B13ET000020402,
http://statistics.data.gov.uk/id/local-authority/29UP,Tonbridge & Malling Borough Council,2/16/2022,0022026292/30,22026292, 224.12,Urbaser LTD,01718800,,Maintenance of Grounds,Parking Off-Street,E10HAE01920402,
http://statistics.data.gov.uk/id/local-authority/29UP,Tonbridge & Malling Borough Council,2/16/2022,0022026292/31,22026292, 492.32,Urbaser LTD,01718800,,Maintenance of Grounds,Parking Off-Street,E10HAE02020402,
http://statistics.data.gov.uk/id/local-authority/29UP,Tonbridge & Malling Borough Council,2/16/2022,0022026292/32,22026292, 17.09,Urbaser LTD,01718800,,Maintenance of Grounds,Parking Off-Street,E10HAE02120402,
http://statistics.data.gov.uk/id/local-authority/29UP,Tonbridge & Malling Borough Council,2/16/2022,0022026292/33,22026292, 112.54,Urbaser LTD,01718800,,Maintenance of Grounds,Parking Off-Street,E10HAE02220402,
http://statistics.data.gov.uk/id/local-authority/29UP,Tonbridge & Malling Borough Council,2/16/2022,0022026292/34,22026292, 946.10,Urbaser LTD,01718800,,Maintenance of Grounds,Parking Off-Street,E10HAE02320402,
http://statistics.data.gov.uk/id/local-authority/29UP,Tonbridge & Malling Borough Council,2/16/2022,0022026292/35,22026292, 2.44,Urbaser LTD,01718800,,Maintenance of Grounds,Parking Off-Street,E10HAE02720402,
http://statistics.data.gov.uk/id/local-authority/29UP,Tonbridge & Malling Borough Council,2/16/2022,0022026292/36,22026292, 343.77,Urbaser LTD,01718800,,Maintenance of Grounds,Parking Off-Street,E10HAE02820402,
http://statistics.data.gov.uk/id/local-authority/29UP,Tonbridge & Malling Borough Council,2/16/2022,0022026292/37,22026292, 6.19,Urbaser LTD,01718800,,Maintenance of Grounds,Parking Off-Street,E10HAE02920402,
http://statistics.data.gov.uk/id/local-authority/29UP,Tonbridge & Malling Borough Council,2/16/2022,0022026292/38,22026292, 36.43,Urbaser LTD,01718800,,Maintenance of Grounds,Parking Off-Street,E10HAE03020402,
http://statistics.data.gov.uk/id/local-authority/29UP,Tonbridge & Malling Borough Council,2/16/2022,0022026292/39,22026292, 31.00,Urbaser LTD,01718800,,Maintenance of Grounds,Parking Off-Street,E10HAE03120402,
http://statistics.data.gov.uk/id/local-authority/29UP,Tonbridge & Malling Borough Council,2/16/2022,0022026292/4,22026292, 75.43,Urbaser LTD,01718800,,Maintenance of Grounds,Poult Wood Golf Centre,B21KE000020402,
http://statistics.data.gov.uk/id/local-authority/29UP,Tonbridge & Malling Borough Council,2/16/2022,0022026292/40,22026292, 657.32,Urbaser LTD,01718800,,Maintenance of Grounds,Parking Off-Street,E10HAE04020402,
http://statistics.data.gov.uk/id/local-authority/29UP,Tonbridge & Malling Borough Council,2/16/2022,0022026292/41,22026292, 455.90,Urbaser LTD,01718800,,Maintenance of Grounds,Parking Off-Street,E10HAE04220402,
http://statistics.data.gov.uk/id/local-authority/29UP,Tonbridge & Malling Borough Council,2/16/2022,0022026292/42,22026292, 1308.55,Urbaser LTD,01718800,,Maintenance of Grounds,Parking Off-Street,E10HAE04520402,
http://statistics.data.gov.uk/id/local-authority/29UP,Tonbridge & Malling Borough Council,2/16/2022,0022026292/43,22026292, 81773.77,Urbaser LTD,01718800,,Contract Payments,Refuse Collection,H20SA000054001,
http://statistics.data.gov.uk/id/local-authority/29UP,Tonbridge & Malling Borough Council,2/16/2022,0022026292/44,22026292, 865.70,Urbaser LTD,01718800,,Responsible Dog Ownership,Street Scene,H23SD000044050,
http://statistics.data.gov.uk/id/local-authority/29UP,Tonbridge & Malling Borough Council,2/16/2022,0022026292/45,22026292, 51717.72,Urbaser LTD,01718800,,Contract Payments,Street Scene,H23SD000054001,
http://statistics.data.gov.uk/id/local-authority/29UP,Tonbridge & Malling Borough Council,2/16/2022,0022026292/46,22026292, 819.23,Urbaser LTD,01718800,,General Maintenance,Dry Recycling,H34SR000020301,
http://statistics.data.gov.uk/id/local-authority/29UP,Tonbridge & Malling Borough Council,2/16/2022,0022026292/47,22026292, 73613.88,Urbaser LTD,01718800,,Contract Payments,Dry Recycling,H34SR000054001,
http://statistics.data.gov.uk/id/local-authority/29UP,Tonbridge & Malling Borough Council,2/16/2022,0022026292/48,22026292, 3803.64,Urbaser LTD,01718800,,Bring Sites Mixed Recycling,Dry Recycling,H34SR000054026,
http://statistics.data.gov.uk/id/local-authority/29UP,Tonbridge & Malling Borough Council,2/16/2022,0022026292/49,22026292, 28804.34,Urbaser LTD,01718800,,Contract Payments,Food Recycling,H34SS000054001,
http://statistics.data.gov.uk/id/local-authority/29UP,Tonbridge & Malling Borough Council,2/16/2022,0022026292/5,22026292, 31.13,Urbaser LTD,01718800,,Maintenance of Grounds,Haysden Country Park,B22LC000020402,
http://statistics.data.gov.uk/id/local-authority/29UP,Tonbridge & Malling Borough Council,2/16/2022,0022026292/50,22026292, 16367.16,Urbaser LTD,01718800,,Contract Payments,Garden Waste Recycling,H34ST000054001,
http://statistics.data.gov.uk/id/local-authority/29UP,Tonbridge & Malling Borough Council,2/16/2022,0022026292/6,22026292, 23.91,Urbaser LTD,01718800,,Dog Bin Emptying,Haysden Country Park,B22LC000044012,
http://statistics.data.gov.uk/id/local-authority/29UP,Tonbridge & Malling Borough Council,2/16/2022,0022026292/7,22026292, 677.66,Urbaser LTD,01718800,,Maintenance of Grounds,Open Spaces & Amenity Areas,B22LE000020402,
http://statistics.data.gov.uk/id/local-authority/29UP,Tonbridge & Malling Borough Council,2/16/2022,0022026292/8,22026292, 12.75,Urbaser LTD,01718800,,Dog Bin Emptying,Open Spaces & Amenity Areas,B22LE000044012,
http://statistics.data.gov.uk/id/local-authority/29UP,Tonbridge & Malling Borough Council,2/16/2022,0022026292/9,22026292, 22.00,Urbaser LTD,01718800,,Maintenance of Grounds,Countryside/Woodland Mgt,B22LG000020402,
http://statistics.data.gov.uk/id/local-authority/29UP,Tonbridge & Malling Borough Council,2/16/2022,0022026293/10,22026293, 66.06,Urbaser LTD,01718800,,Maintenance of Grounds,Leybourne Lakes Country Park,B22LK000020402,
http://statistics.data.gov.uk/id/local-authority/29UP,Tonbridge & Malling Borough Council,2/16/2022,0022026293/11,22026293, 23.91,Urbaser LTD,01718800,,Dog Bin Emptying,Leybourne Lakes Country Park,B22LK000044012,
http://statistics.data.gov.uk/id/local-authority/29UP,Tonbridge & Malling Borough Council,2/16/2022,0022026293/12,22026293, 55.10,Urbaser LTD,01718800,,Maintenance of Grounds,Grounds,D21FF000020402,
http://statistics.data.gov.uk/id/local-authority/29UP,Tonbridge & Malling Borough Council,2/16/2022,0022026293/13,22026293, 168.53,Urbaser LTD,01718800,,Maintenance of Grounds,Parking Off-Street,E10HA000020402,
http://statistics.data.gov.uk/id/local-authority/29UP,Tonbridge & Malling Borough Council,2/16/2022,0022026293/14,22026293, 4288.11,Urbaser LTD,01718800,,Maintenance of Grounds,Parking Off-Street,E10HAE00120402,
http://statistics.data.gov.uk/id/local-authority/29UP,Tonbridge & Malling Borough Council,2/16/2022,0022026293/15,22026293, 461.92,Urbaser LTD,01718800,,Maintenance of Grounds,Parking Off-Street,E10HAE00220402,
http://statistics.data.gov.uk/id/local-authority/29UP,Tonbridge & Malling Borough Council,2/16/2022,0022026293/16,22026293, 288.97,Urbaser LTD,01718800,,Maintenance of Grounds,Parking Off-Street,E10HAE00320402,
http://statistics.data.gov.uk/id/local-authority/29UP,Tonbridge & Malling Borough Council,2/16/2022,0022026293/17,22026293, 1511.29,Urbaser LTD,01718800,,Maintenance of Grounds,Parking Off-Street,E10HAE00420402,
http://statistics.data.gov.uk/id/local-authority/29UP,Tonbridge & Malling Borough Council,2/16/2022,0022026293/18,22026293, 251.14,Urbaser LTD,01718800,,Maintenance of Grounds,Parking Off-Street,E10HAE00520402,
http://statistics.data.gov.uk/id/local-authority/29UP,Tonbridge & Malling Borough Council,2/16/2022,0022026293/19,22026293, 936.67,Urbaser LTD,01718800,,Maintenance of Grounds,Parking Off-Street,E10HAE00620402,
http://statistics.data.gov.uk/id/local-authority/29UP,Tonbridge & Malling Borough Council,2/16/2022,0022026293/20,22026293, 7.90,Urbaser LTD,01718800,,Maintenance of Grounds,Parking Off-Street,E10HAE00820402,
http://statistics.data.gov.uk/id/local-authority/29UP,Tonbridge & Malling Borough Council,2/16/2022,0022026293/21,22026293, 7.80,Urbaser LTD,01718800,,Maintenance of Grounds,Parking Off-Street,E10HAE00920402,
http://statistics.data.gov.uk/id/local-authority/29UP,Tonbridge & Malling Borough Council,2/16/2022,0022026293/22,22026293, 18.51,Urbaser LTD,01718800,,Maintenance of Grounds,Parking Off-Street,E10HAE01020402,
http://statistics.data.gov.uk/id/local-authority/29UP,Tonbridge & Malling Borough Council,2/16/2022,0022026293/23,22026293, 87.95,Urbaser LTD,01718800,,Maintenance of Grounds,Parking Off-Street,E10HAE01120402,
http://statistics.data.gov.uk/id/local-authority/29UP,Tonbridge & Malling Borough Council,2/16/2022,0022026293/24,22026293, 55.34,Urbaser LTD,01718800,,Maintenance of Grounds,Parking Off-Street,E10HAE01220402,
http://statistics.data.gov.uk/id/local-authority/29UP,Tonbridge & Malling Borough Council,2/16/2022,0022026293/25,22026293, 1049.30,Urbaser LTD,01718800,,Maintenance of Grounds,Parking Off-Street,E10HAE01320402,
http://statistics.data.gov.uk/id/local-authority/29UP,Tonbridge & Malling Borough Council,2/16/2022,0022026293/26,22026293, 79.80,Urbaser LTD,01718800,,Maintenance of Grounds,Parking Off-Street,E10HAE01420402,
http://statistics.data.gov.uk/id/local-authority/29UP,Tonbridge & Malling Borough Council,2/16/2022,0022026293/27,22026293, 245.93,Urbaser LTD,01718800,,Maintenance of Grounds,Parking Off-Street,E10HAE01520402,
http://statistics.data.gov.uk/id/local-authority/29UP,Tonbridge & Malling Borough Council,2/16/2022,0022026293/28,22026293, 264.50,Urbaser LTD,01718800,,Maintenance of Grounds,Parking Off-Street,E10HAE01620402,
http://statistics.data.gov.uk/id/local-authority/29UP,Tonbridge & Malling Borough Council,2/16/2022,0022026293/29,22026293, 780.85,Urbaser LTD,01718800,,Maintenance of Grounds,Parking Off-Street,E10HAE01720402,
http://statistics.data.gov.uk/id/local-authority/29UP,Tonbridge & Malling Borough Council,2/16/2022,0022026293/3,22026293, 354.43,Urbaser LTD,01718800,,Maintenance of Grounds,Sports Grounds,B13ET000020402,
http://statistics.data.gov.uk/id/local-authority/29UP,Tonbridge & Malling Borough Council,2/16/2022,0022026293/30,22026293, 224.12,Urbaser LTD,01718800,,Maintenance of Grounds,Parking Off-Street,E10HAE01920402,
http://statistics.data.gov.uk/id/local-authority/29UP,Tonbridge & Malling Borough Council,2/16/2022,0022026293/31,22026293, 492.32,Urbaser LTD,01718800,,Maintenance of Grounds,Parking Off-Street,E10HAE02020402,
http://statistics.data.gov.uk/id/local-authority/29UP,Tonbridge & Malling Borough Council,2/16/2022,0022026293/32,22026293, 17.09,Urbaser LTD,01718800,,Maintenance of Grounds,Parking Off-Street,E10HAE02120402,
http://statistics.data.gov.uk/id/local-authority/29UP,Tonbridge & Malling Borough Council,2/16/2022,0022026293/33,22026293, 112.54,Urbaser LTD,01718800,,Maintenance of Grounds,Parking Off-Street,E10HAE02220402,
http://statistics.data.gov.uk/id/local-authority/29UP,Tonbridge & Malling Borough Council,2/16/2022,0022026293/34,22026293, 946.10,Urbaser LTD,01718800,,Maintenance of Grounds,Parking Off-Street,E10HAE02320402,
http://statistics.data.gov.uk/id/local-authority/29UP,Tonbridge & Malling Borough Council,2/16/2022,0022026293/35,22026293, 2.44,Urbaser LTD,01718800,,Maintenance of Grounds,Parking Off-Street,E10HAE02720402,
http://statistics.data.gov.uk/id/local-authority/29UP,Tonbridge & Malling Borough Council,2/16/2022,0022026293/36,22026293, 343.77,Urbaser LTD,01718800,,Maintenance of Grounds,Parking Off-Street,E10HAE02820402,
http://statistics.data.gov.uk/id/local-authority/29UP,Tonbridge & Malling Borough Council,2/16/2022,0022026293/37,22026293, 6.19,Urbaser LTD,01718800,,Maintenance of Grounds,Parking Off-Street,E10HAE02920402,
http://statistics.data.gov.uk/id/local-authority/29UP,Tonbridge & Malling Borough Council,2/16/2022,0022026293/38,22026293, 36.43,Urbaser LTD,01718800,,Maintenance of Grounds,Parking Off-Street,E10HAE03020402,
http://statistics.data.gov.uk/id/local-authority/29UP,Tonbridge & Malling Borough Council,2/16/2022,0022026293/39,22026293, 31.00,Urbaser LTD,01718800,,Maintenance of Grounds,Parking Off-Street,E10HAE03120402,
http://statistics.data.gov.uk/id/local-authority/29UP,Tonbridge & Malling Borough Council,2/16/2022,0022026293/4,22026293, 75.43,Urbaser LTD,01718800,,Maintenance of Grounds,Poult Wood Golf Centre,B21KE000020402,
http://statistics.data.gov.uk/id/local-authority/29UP,Tonbridge & Malling Borough Council,2/16/2022,0022026293/40,22026293, 657.32,Urbaser LTD,01718800,,Maintenance of Grounds,Parking Off-Street,E10HAE04020402,
http://statistics.data.gov.uk/id/local-authority/29UP,Tonbridge & Malling Borough Council,2/16/2022,0022026293/41,22026293, 455.90,Urbaser LTD,01718800,,Maintenance of Grounds,Parking Off-Street,E10HAE04220402,
http://statistics.data.gov.uk/id/local-authority/29UP,Tonbridge & Malling Borough Council,2/16/2022,0022026293/42,22026293, 1308.55,Urbaser LTD,01718800,,Maintenance of Grounds,Parking Off-Street,E10HAE04520402,
http://statistics.data.gov.uk/id/local-authority/29UP,Tonbridge & Malling Borough Council,2/16/2022,0022026293/43,22026293, 81773.77,Urbaser LTD,01718800,,Contract Payments,Refuse Collection,H20SA000054001,
http://statistics.data.gov.uk/id/local-authority/29UP,Tonbridge & Malling Borough Council,2/16/2022,0022026293/44,22026293, 865.70,Urbaser LTD,01718800,,Responsible Dog Ownership,Street Scene,H23SD000044050,
http://statistics.data.gov.uk/id/local-authority/29UP,Tonbridge & Malling Borough Council,2/16/2022,0022026293/45,22026293, 51717.72,Urbaser LTD,01718800,,Contract Payments,Street Scene,H23SD000054001,
http://statistics.data.gov.uk/id/local-authority/29UP,Tonbridge & Malling Borough Council,2/16/2022,0022026293/46,22026293, 819.23,Urbaser LTD,01718800,,General Maintenance,Dry Recycling,H34SR000020301,
http://statistics.data.gov.uk/id/local-authority/29UP,Tonbridge & Malling Borough Council,2/16/2022,0022026293/47,22026293, 73613.88,Urbaser LTD,01718800,,Contract Payments,Dry Recycling,H34SR000054001,
http://statistics.data.gov.uk/id/local-authority/29UP,Tonbridge & Malling Borough Council,2/16/2022,0022026293/48,22026293, 3803.64,Urbaser LTD,01718800,,Bring Sites Mixed Recycling,Dry Recycling,H34SR000054026,
http://statistics.data.gov.uk/id/local-authority/29UP,Tonbridge & Malling Borough Council,2/16/2022,0022026293/49,22026293, 28804.34,Urbaser LTD,01718800,,Contract Payments,Food Recycling,H34SS000054001,
http://statistics.data.gov.uk/id/local-authority/29UP,Tonbridge & Malling Borough Council,2/16/2022,0022026293/5,22026293, 31.13,Urbaser LTD,01718800,,Maintenance of Grounds,Haysden Country Park,B22LC000020402,
http://statistics.data.gov.uk/id/local-authority/29UP,Tonbridge & Malling Borough Council,2/16/2022,0022026293/50,22026293, 16367.16,Urbaser LTD,01718800,,Contract Payments,Garden Waste Recycling,H34ST000054001,
http://statistics.data.gov.uk/id/local-authority/29UP,Tonbridge & Malling Borough Council,2/16/2022,0022026293/6,22026293, 23.91,Urbaser LTD,01718800,,Dog Bin Emptying,Haysden Country Park,B22LC000044012,
http://statistics.data.gov.uk/id/local-authority/29UP,Tonbridge & Malling Borough Council,2/16/2022,0022026293/7,22026293, 677.66,Urbaser LTD,01718800,,Maintenance of Grounds,Open Spaces & Amenity Areas,B22LE000020402,
http://statistics.data.gov.uk/id/local-authority/29UP,Tonbridge & Malling Borough Council,2/16/2022,0022026293/8,22026293, 12.75,Urbaser LTD,01718800,,Dog Bin Emptying,Open Spaces & Amenity Areas,B22LE000044012,
http://statistics.data.gov.uk/id/local-authority/29UP,Tonbridge & Malling Borough Council,2/16/2022,0022026293/9,22026293, 22.00,Urbaser LTD,01718800,,Maintenance of Grounds,Countryside/Woodland Mgt,B22LG000020402,
http://statistics.data.gov.uk/id/local-authority/29UP,Tonbridge & Malling Borough Council,2/16/2022,0022026294/3,22026294, 1485.75,Ward Security LTD,01490000,,Dog Warden,Street Scene,H23SD000044100,
http://statistics.data.gov.uk/id/local-authority/29UP,Tonbridge & Malling Borough Council,2/16/2022,0022026296/3,22026296, 433.20,Countrystyle Group,00835900,781981681,Plastic Recycling,Dry Recycling,H34SR000054019,
http://statistics.data.gov.uk/id/local-authority/29UP,Tonbridge & Malling Borough Council,2/16/2022,0022026298/3,22026298, 2028.30,Lucy and Martin Recycling LTD,01694200,,Vehicle Licences,Dry Recycling,H34SR000030105,
http://statistics.data.gov.uk/id/local-authority/29UP,Tonbridge & Malling Borough Council,2/16/2022,0022026299/3,22026299, 1630.50,Charles & Associates,01739200,,Application & Appeals,Development Management,A01AB000044194,
http://statistics.data.gov.uk/id/local-authority/29UP,Tonbridge & Malling Borough Council,2/16/2022,0022026300/1,22026300, 3158.19,Clarion Housing,01078200,,Repossessions Prevention Fund,Homelessness,C01AA000044054,
http://statistics.data.gov.uk/id/local-authority/29UP,Tonbridge & Malling Borough Council,2/16/2022,0022026301/1,22026301, 1237.50,Tunbridge Wells Borough Council,00844600,,Other Expenses,Refuse Collection,H20SA000048010,
http://statistics.data.gov.uk/id/local-authority/29UP,Tonbridge & Malling Borough Council,2/16/2022,0022026302/1,22026302, 2.32,Greenham Trading Ltd,00127900,745138823,Health General,Food & Safety - General,H35SW000044049,220003194
http://statistics.data.gov.uk/id/local-authority/29UP,Tonbridge & Malling Borough Council,2/16/2022,0022026302/2,22026302, 10.04,Greenham Trading Ltd,00127900,745138823,Health General,Food & Safety - General,H35SW000044049,220003194
http://statistics.data.gov.uk/id/local-authority/29UP,Tonbridge & Malling Borough Council,2/16/2022,0022026302/3,22026302, 8.40,Greenham Trading Ltd,00127900,745138823,Health General,Food & Safety - General,H35SW000044049,220003194
http://statistics.data.gov.uk/id/local-authority/29UP,Tonbridge & Malling Borough Council,2/16/2022,0031018468/1,31018468, 119.74,Kings Hill Garage Ltd,01546300,,"Petrol, Diesel & Oil",Parking Off-Street,E10HA000030106,310042749
http://statistics.data.gov.uk/id/local-authority/29UP,Tonbridge & Malling Borough Council,2/16/2022,0031018468/2,31018468, 179.60,Kings Hill Garage Ltd,01546300,,"Petrol, Diesel & Oil",Parking On-Street,E10HD000030106,310042749
http://statistics.data.gov.uk/id/local-authority/29UP,Tonbridge & Malling Borough Council,2/16/2022,0031018469/3,31018469, 16.50,Kings Hill Garage Ltd,01546300,,Transport Repair & Maintenance,Parking Off-Street,E10HA000030103,
http://statistics.data.gov.uk/id/local-authority/29UP,Tonbridge & Malling Borough Council,2/16/2022,0031018470/1,31018470, 32.00,Kings Hill Garage Ltd,01546300,,Transport Repair & Maintenance,Parking Off-Street,E10HA000030103,310042768
http://statistics.data.gov.uk/id/local-authority/29UP,Tonbridge & Malling Borough Council,2/16/2022,0031018470/2,31018470, 15.22,Kings Hill Garage Ltd,01546300,,Transport Repair & Maintenance,Parking Off-Street,E10HA000030103,310042768
http://statistics.data.gov.uk/id/local-authority/29UP,Tonbridge & Malling Borough Council,2/16/2022,0031018470/3,31018470, 34.15,Kings Hill Garage Ltd,01546300,,Transport Repair & Maintenance,Parking Off-Street,E10HA000030103,310042768
http://statistics.data.gov.uk/id/local-authority/29UP,Tonbridge & Malling Borough Council,2/16/2022,0031018470/4,31018470, 51.23,Kings Hill Garage Ltd,01546300,,Transport Repair & Maintenance,Parking On-Street,E10HD000030103,310042768
http://statistics.data.gov.uk/id/local-authority/29UP,Tonbridge & Malling Borough Council,2/16/2022,0031018470/5,31018470, 48.00,Kings Hill Garage Ltd,01546300,,Transport Repair & Maintenance,Parking On-Street,E10HD000030103,310042768
http://statistics.data.gov.uk/id/local-authority/29UP,Tonbridge & Malling Borough Council,2/16/2022,0031018470/6,31018470, 22.84,Kings Hill Garage Ltd,01546300,,Transport Repair & Maintenance,Parking On-Street,E10HD000030103,310042768
http://statistics.data.gov.uk/id/local-authority/29UP,Tonbridge & Malling Borough Council,2/16/2022,0031018473/3,31018473, 1260.00,Sevenoaks District Council,00089300,,Out of Hours Service,Civil Contingencies,D33NA000045025,
http://statistics.data.gov.uk/id/local-authority/29UP,Tonbridge & Malling Borough Council,2/16/2022,0032009402/3,32009402, 2899.64,G2 Recruitment Solutions,01786000,,Temporary Staff,Planning Sals&Overheads,D01AJDJ0111300,
http://statistics.data.gov.uk/id/local-authority/29UP,Tonbridge & Malling Borough Council,2/16/2022,0032009403/1,32009403, 899.00,JBA Consulting,01599000,665300941,Development of Local Plan,Development of Local Plan,A01AE000044023,320003369
http://statistics.data.gov.uk/id/local-authority/29UP,Tonbridge & Malling Borough Council,2/16/2022,0032009404/1,32009404, 6834.00,JBA Consulting,01599000,665300941,Development of Local Plan,Development of Local Plan,A01AE000044023,320003369
http://statistics.data.gov.uk/id/local-authority/29UP,Tonbridge & Malling Borough Council,2/16/2022,0032009405/3,32009405, 653.20,The Oyster Partnership,01196400,,Temporary Staff,Planning Sals&Overheads,D01AJDJ0111300,
http://statistics.data.gov.uk/id/local-authority/29UP,Tonbridge & Malling Borough Council,2/16/2022,0032009406/1,32009406, 214.20,KM Media Group Ltd,00053900,,Advertising General,Development Management,A01ABZ99944216,320003380
http://statistics.data.gov.uk/id/local-authority/29UP,Tonbridge & Malling Borough Council,2/16/2022,0032009407/1,32009407, 1717.00,Jon Etchells Consulting,01777100,676984559,Application & Appeals,Development Management,A01AB000044194,
http://statistics.data.gov.uk/id/local-authority/29UP,Tonbridge & Malling Borough Council,2/16/2022,0041033715/1,41033715, 25000.00,"Dep for Business, Energy & Industial Str",01793500,,Small Business Support,Local Revenue & NNDR Collect,D41QACV1948071,
http://statistics.data.gov.uk/id/local-authority/29UP,Tonbridge & Malling Borough Council,2/16/2022,0041033715/2,41033715, 214.00,"Dep for Business, Energy & Industial Str",01793500,,T3 Ongoing Closure,Local Revenue & NNDR Collect,D41QACV1948085,
http://statistics.data.gov.uk/id/local-authority/29UP,Tonbridge & Malling Borough Council,2/16/2022,0041033715/3,41033715, 428.00,"Dep for Business, Energy & Industial Str",01793500,,T4 Restrictions,Local Revenue & NNDR Collect,D41QACV1948086,
http://statistics.data.gov.uk/id/local-authority/29UP,Tonbridge & Malling Borough Council,2/16/2022,0041033715/4,41033715, 4714.00,"Dep for Business, Energy & Industial Str",01793500,,Closed Business Lockdown,Local Revenue & NNDR Collect,D41QACV1948089,
http://statistics.data.gov.uk/id/local-authority/29UP,Tonbridge & Malling Borough Council,2/16/2022,0041033963/1,41033963, 14.64,Amazon EU SARL,01738400,,Stationery,Finance Sals&Overheads,D01AFDF1143003,410032122
http://statistics.data.gov.uk/id/local-authority/29UP,Tonbridge & Malling Borough Council,2/16/2022,0041033964/1,41033964, 7996.00,CTL Audiovisual Services Ltd,01652000,,Maintenance - Ancillary Equip,Information Technology,D27KD000040137,410032125
http://statistics.data.gov.uk/id/local-authority/29UP,Tonbridge & Malling Borough Council,2/16/2022,0041033965/10,41033965, 9.72,Computershare Voucher Services,01212600,,National Insurance,Env Hlth & Hsg Sals&Overheads,D01AVDV0711191,
http://statistics.data.gov.uk/id/local-authority/29UP,Tonbridge & Malling Borough Council,2/16/2022,0041033965/3,41033965, 20.00,Computershare Voucher Services,01212600,,Childcare Scheme,Finance Sals&Overheads,D01AFDF0911136,
http://statistics.data.gov.uk/id/local-authority/29UP,Tonbridge & Malling Borough Council,2/16/2022,0041033965/4,41033965, 0.80,Computershare Voucher Services,01212600,,National Insurance,Finance Sals&Overheads,D01AFDF0911191,
http://statistics.data.gov.uk/id/local-authority/29UP,Tonbridge & Malling Borough Council,2/16/2022,0041033965/5,41033965, 50.00,Computershare Voucher Services,01212600,,Childcare Scheme,Legal Sals&Overheads,D01ARDR0011136,
http://statistics.data.gov.uk/id/local-authority/29UP,Tonbridge & Malling Borough Council,2/16/2022,0041033965/6,41033965, 2.00,Computershare Voucher Services,01212600,,National Insurance,Legal Sals&Overheads,D01ARDR0011191,
http://statistics.data.gov.uk/id/local-authority/29UP,Tonbridge & Malling Borough Council,2/16/2022,0041033965/7,41033965, 20.00,Computershare Voucher Services,01212600,,Childcare Scheme,Env Hlth & Hsg Sals&Overheads,D01AVDV0211136,
http://statistics.data.gov.uk/id/local-authority/29UP,Tonbridge & Malling Borough Council,2/16/2022,0041033965/8,41033965, 0.80,Computershare Voucher Services,01212600,,National Insurance,Env Hlth & Hsg Sals&Overheads,D01AVDV0211191,
http://statistics.data.gov.uk/id/local-authority/29UP,Tonbridge & Malling Borough Council,2/16/2022,0041033965/9,41033965, 243.00,Computershare Voucher Services,01212600,,Childcare Scheme,Env Hlth & Hsg Sals&Overheads,D01AVDV0711136,
http://statistics.data.gov.uk/id/local-authority/29UP,Tonbridge & Malling Borough Council,2/16/2022,0041033966/3,41033966, 499.13,KH Recruitment Ltd,01738900,,Temporary Staff,Finance Sals&Overheads,D01AFDF1111300,
http://statistics.data.gov.uk/id/local-authority/29UP,Tonbridge & Malling Borough Council,2/16/2022,0041033968/1,41033968, 250.00,PCC St Mary Hadlow,01835200,,Charitable / Voluntary Organis,Grants & Payments to Vol Orgn,D37PACV1947005,
http://statistics.data.gov.uk/id/local-authority/29UP,Tonbridge & Malling Borough Council,2/16/2022,0041033970/3,41033970, 875.00,Morgan Hunt UK Ltd,01086900,,Temporary Staff,Finance Sals&Overheads,D01AFDF1111300,
http://statistics.data.gov.uk/id/local-authority/29UP,Tonbridge & Malling Borough Council,2/16/2022,0041033971/3,41033971, 821.50,Morgan Hunt UK Ltd,01086900,,Temporary Staff,Finance Sals&Overheads,D01AFDF1111300,
http://statistics.data.gov.uk/id/local-authority/29UP,Tonbridge & Malling Borough Council,2/16/2022,0041033972/3,41033972, 540.00,The Oyster Partnership,01196400,,Temporary Staff,Finance Sals&Overheads,D01AFDF1111300,
http://statistics.data.gov.uk/id/local-authority/29UP,Tonbridge & Malling Borough Council,2/16/2022,0041033973/3,41033973, 792.00,The Oyster Partnership,01196400,,Temporary Staff,Finance Sals&Overheads,D01AFDF1111300,
http://statistics.data.gov.uk/id/local-authority/29UP,Tonbridge & Malling Borough Council,2/16/2022,0041033985/1,41033985, 80.00,WorldPay Ltd,01402000,991280207,Credit Card Commission,Banking Arrangements,D43QK000044082,
http://statistics.data.gov.uk/id/local-authority/29UP,Tonbridge & Malling Borough Council,2/16/2022,0041033985/2,41033985, 55.28,WorldPay Ltd,01402000,991280207,Credit Card Commission,Banking Arrangements,D43QK000044082,
http://statistics.data.gov.uk/id/local-authority/29UP,Tonbridge & Malling Borough Council,2/16/2022,0041033985/3,41033985, 0.48,WorldPay Ltd,01402000,991280207,Credit Card Commission,Banking Arrangements,D43QK000044082,
http://statistics.data.gov.uk/id/local-authority/29UP,Tonbridge & Malling Borough Council,2/16/2022,0041033986/1,41033986, 80.00,WorldPay Ltd,01402000,991280207,Credit Card Commission,Banking Arrangements,D43QK000044082,
http://statistics.data.gov.uk/id/local-authority/29UP,Tonbridge & Malling Borough Council,2/16/2022,0041033986/2,41033986, 42.16,WorldPay Ltd,01402000,991280207,Credit Card Commission,Banking Arrangements,D43QK000044082,
http://statistics.data.gov.uk/id/local-authority/29UP,Tonbridge & Malling Borough Council,2/16/2022,0041033986/3,41033986, 0.96,WorldPay Ltd,01402000,991280207,Credit Card Commission,Banking Arrangements,D43QK000044082,
http://statistics.data.gov.uk/id/local-authority/29UP,Tonbridge & Malling Borough Council,2/16/2022,0041033987/1,41033987, 80.00,WorldPay Ltd,01402000,991280207,Credit Card Commission,Banking Arrangements,D43QK000044082,
http://statistics.data.gov.uk/id/local-authority/29UP,Tonbridge & Malling Borough Council,2/16/2022,0041033987/2,41033987, 130.08,WorldPay Ltd,01402000,991280207,Credit Card Commission,Banking Arrangements,D43QK000044082,
http://statistics.data.gov.uk/id/local-authority/29UP,Tonbridge & Malling Borough Council,2/16/2022,0041033987/3,41033987, 0.16,WorldPay Ltd,01402000,991280207,Credit Card Commission,Banking Arrangements,D43QK000044082,
http://statistics.data.gov.uk/id/local-authority/29UP,Tonbridge & Malling Borough Council,2/16/2022,0051008652/1,51008652, 60.00,Hertsmere Borough Council,01794800,,Ext Fees/Prof & Tech,Training,D10DCDV0113561,510010550
http://statistics.data.gov.uk/id/local-authority/29UP,Tonbridge & Malling Borough Council,2/16/2022,0051008653/1,51008653, 370.00,Firebrand Training Ltd,01716800,,Ext Fees/Prof & Tech,Training,D10DCDN0213561,510010544
http://statistics.data.gov.uk/id/local-authority/29UP,Tonbridge & Malling Borough Council,2/16/2022,0051008654/1,51008654, 370.00,Firebrand Training Ltd,01716800,,Ext Fees/Prof & Tech,Training,D10DCDN0213561,510010545
http://statistics.data.gov.uk/id/local-authority/29UP,Tonbridge & Malling Borough Council,2/16/2022,0051008655/1,51008655, 740.00,Firebrand Training Ltd,01716800,,Ext Fees/Prof & Tech,Training,D10DCDN0113561,510010547
http://statistics.data.gov.uk/id/local-authority/29UP,Tonbridge & Malling Borough Council,2/16/2022,0051008656/1,51008656, 370.00,Firebrand Training Ltd,01716800,,Ext Fees/Prof & Tech,Training,D10DCDN0213561,510010543
http://statistics.data.gov.uk/id/local-authority/29UP,Tonbridge & Malling Borough Council,2/16/2022,0051008657/1,51008657, 370.00,Firebrand Training Ltd,01716800,,Ext Fees/Prof & Tech,Training,D10DCDN0113561,510010548
http://statistics.data.gov.uk/id/local-authority/29UP,Tonbridge & Malling Borough Council,2/16/2022,0051008658/1,51008658, 370.00,Firebrand Training Ltd,01716800,,Ext Fees/Prof & Tech,Training,D10DCDN0213561,510010546
http://statistics.data.gov.uk/id/local-authority/29UP,Tonbridge & Malling Borough Council,2/17/2022,0041033994/1,41033994, 800.00,Gower Lane Group,01836400,,Homelessness Reduction Initiat,Homelessness,C01AA000048019,
http://statistics.data.gov.uk/id/local-authority/29UP,Tonbridge & Malling Borough Council,2/17/2022,0041033994/2,41033994, 923.08,Gower Lane Group,01836400,,Rent Deposit / Rent in Advance,Homelessness,C01AAC85244093,
http://statistics.data.gov.uk/id/local-authority/29UP,Tonbridge & Malling Borough Council,2/18/2022,0041033999/1,41033999, 104.98,WorldPay ,01568000,,Credit Card Commission,Banking Arrangements,D43QK000044082,
http://statistics.data.gov.uk/id/local-authority/29UP,Tonbridge & Malling Borough Council,2/18/2022,0041033999/2,41033999, 0.05,WorldPay ,01568000,,Credit Card Commission,Banking Arrangements,D43QK000044082,
http://statistics.data.gov.uk/id/local-authority/29UP,Tonbridge & Malling Borough Council,2/18/2022,0041034000/1,41034000, 3017.98,WorldPay ,01568000,,Credit Card Commission,Banking Arrangements,D43QK000044082,
http://statistics.data.gov.uk/id/local-authority/29UP,Tonbridge & Malling Borough Council,2/18/2022,0041034000/2,41034000, 31.65,WorldPay ,01568000,,Credit Card Commission,Banking Arrangements,D43QK000044082,
http://statistics.data.gov.uk/id/local-authority/29UP,Tonbridge & Malling Borough Council,2/18/2022,0041034001/1,41034001, 110.31,Utax UK Ltd,01658500,642302771,Copy Charges,Multi Function Devices,D22GB000040125,
http://statistics.data.gov.uk/id/local-authority/29UP,Tonbridge & Malling Borough Council,2/18/2022,0041034002/1,41034002, 20.11,WorldPay Ltd,01402000,991280207,Credit Card Commission,Banking Arrangements,D43QK000044082,
http://statistics.data.gov.uk/id/local-authority/29UP,Tonbridge & Malling Borough Council,2/21/2022,0041034007/1,41034007, 257.95,National Westminster Bank Plc,00069400,,Bank Charges,Banking Arrangements,D43QK000044222,
http://statistics.data.gov.uk/id/local-authority/29UP,Tonbridge & Malling Borough Council,2/22/2022,0041034011/1,41034011, 2273.00,H.M. Revenue & Customs,00048400,,Levy Payment,Apprenticeship Scheme,D10DE000013700,
http://statistics.data.gov.uk/id/local-authority/29UP,Tonbridge & Malling Borough Council,2/23/2022,0011043942/1,11043942, 1051.50,H20 Servicing Limited,00888800,808041553,BRREP Servicing - pool plant,Larkfield Leisure Centre,M15HDP20001910,110069094
http://statistics.data.gov.uk/id/local-authority/29UP,Tonbridge & Malling Borough Council,2/23/2022,0011043943/1,11043943, 14.50,KCS,00054200,,Stationery,Admin & Prop Sals&Overheads,D01AA000043003,110069376
http://statistics.data.gov.uk/id/local-authority/29UP,Tonbridge & Malling Borough Council,2/23/2022,0011043944/1,11043944, 14.94,KCS,00054200,,Stationery,Admin & Prop Sals&Overheads,D01AA000043003,110069420
http://statistics.data.gov.uk/id/local-authority/29UP,Tonbridge & Malling Borough Council,2/23/2022,0011043945/1,11043945, 129.00,BML Building Services Ltd,01505000,,BRREP General Maintenance,Land Review,M15MAP49901900,110069414
http://statistics.data.gov.uk/id/local-authority/29UP,Tonbridge & Malling Borough Council,2/23/2022,0011043946/1,11043946, 800.00,Broadwater Technologies,01534500,,BRREP Servicing - pool plant,Larkfield Leisure Centre,M15HDP20001910,110068976
http://statistics.data.gov.uk/id/local-authority/29UP,Tonbridge & Malling Borough Council,2/23/2022,0011043947/1,11043947, 1917.66,H20 Servicing Limited,00888800,808041553,BRREP Plant renewals,Larkfield Leisure Centre,M15HDP20001909,110069355
http://statistics.data.gov.uk/id/local-authority/29UP,Tonbridge & Malling Borough Council,2/23/2022,0011043948/1,11043948, 850.00,BML Building Services Ltd,01505000,,BRREP Gutter Cleaning,Angel Centre,M15HAP20001947,110069432
http://statistics.data.gov.uk/id/local-authority/29UP,Tonbridge & Malling Borough Council,2/23/2022,0011043948/10,11043948, 625.00,BML Building Services Ltd,01505000,,BRREP Gutter Cleaning,Gibson Building West,M15KBP20001947,110069432
http://statistics.data.gov.uk/id/local-authority/29UP,Tonbridge & Malling Borough Council,2/23/2022,0011043948/11,11043948, 425.00,BML Building Services Ltd,01505000,,BRREP Gutter Cleaning,Tonbridge Castle / CAB,M15KFP20001947,110069432
http://statistics.data.gov.uk/id/local-authority/29UP,Tonbridge & Malling Borough Council,2/23/2022,0011043948/12,11043948, 150.00,BML Building Services Ltd,01505000,,BRREP Servicing - ext lighting,Gibson Building East,M15KGP20001941,110069432
http://statistics.data.gov.uk/id/local-authority/29UP,Tonbridge & Malling Borough Council,2/23/2022,0011043948/13,11043948, 625.00,BML Building Services Ltd,01505000,,BRREP Gutter Cleaning,Gibson Building East,M15KGP20001947,110069432
http://statistics.data.gov.uk/id/local-authority/29UP,Tonbridge & Malling Borough Council,2/23/2022,0011043948/2,11043948, 650.00,BML Building Services Ltd,01505000,,BRREP Gutter Cleaning,Tonbridge Swimming Pool,M15HBP20001947,110069432
http://statistics.data.gov.uk/id/local-authority/29UP,Tonbridge & Malling Borough Council,2/23/2022,0011043948/3,11043948, 950.00,BML Building Services Ltd,01505000,,BRREP Gutter Cleaning,Larkfield Leisure Centre,M15HDP20001947,110069432
http://statistics.data.gov.uk/id/local-authority/29UP,Tonbridge & Malling Borough Council,2/23/2022,0011043948/4,11043948, 525.00,BML Building Services Ltd,01505000,,BRREP Gutter Cleaning,Leis Man Poult Wood Golf Centr,M15HEP20001947,110069432
http://statistics.data.gov.uk/id/local-authority/29UP,Tonbridge & Malling Borough Council,2/23/2022,0011043948/5,11043948, 150.00,BML Building Services Ltd,01505000,,BRREP Gutter Cleaning,Leis Man Poult Wood Golf Centr,M15HEP20001947,110069432
http://statistics.data.gov.uk/id/local-authority/29UP,Tonbridge & Malling Borough Council,2/23/2022,0011043948/6,11043948, 150.00,BML Building Services Ltd,01505000,,BRREP Gutter Cleaning,Tonbridge Farm Pavillion,M15HGP20001947,110069432
http://statistics.data.gov.uk/id/local-authority/29UP,Tonbridge & Malling Borough Council,2/23/2022,0011043948/7,11043948, 150.00,BML Building Services Ltd,01505000,,BRREP Gutter Cleaning,Pleasure Grounds & Open Spaces,M15HHP20001947,110069432
http://statistics.data.gov.uk/id/local-authority/29UP,Tonbridge & Malling Borough Council,2/23/2022,0011043948/8,11043948, 150.00,BML Building Services Ltd,01505000,,BRREP Gutter Cleaning,Pleasure Grounds & Open Spaces,M15HHP20001947,110069432
http://statistics.data.gov.uk/id/local-authority/29UP,Tonbridge & Malling Borough Council,2/23/2022,0011043948/9,11043948, 150.00,BML Building Services Ltd,01505000,,BRREP Gutter Cleaning,Tonbridge Cemetery,M15HJP20001947,110069432
http://statistics.data.gov.uk/id/local-authority/29UP,Tonbridge & Malling Borough Council,2/23/2022,0011043949/1,11043949, 661.00,DORMA UK Ltd,00413500,549361128,BRREP Servicing-entrance doors,Gibson Building West,M15KBP20001927,110069433
http://statistics.data.gov.uk/id/local-authority/29UP,Tonbridge & Malling Borough Council,2/23/2022,0011043950/1,11043950, 774.00,BML Building Services Ltd,01505000,,BRREP Window/door repairs,Larkfield Leisure Centre,M15HDP20001919,110069434
http://statistics.data.gov.uk/id/local-authority/29UP,Tonbridge & Malling Borough Council,2/23/2022,0011043951/1,11043951, 1600.10,GSF SANDYLIGHT LTD,01705300,,Temporary Staff,Admin & Prop Sals&Overheads,D01AADA0511300,
http://statistics.data.gov.uk/id/local-authority/29UP,Tonbridge & Malling Borough Council,2/23/2022,0011043952/1,11043952, 500.00,G C Industrial Heating Services,00578100,,BRREP Servicing - Heating Syst,Leis Man Poult Wood Golf Centr,M15HEP20001934,
http://statistics.data.gov.uk/id/local-authority/29UP,Tonbridge & Malling Borough Council,2/23/2022,0011043953/1,11043953, 334.62,Chubb Fire & Security Ltd,00115400,174605362,BRREP Servicing-IntruderAlarm,Larkfield Leisure Centre,M15HDP20001939,
http://statistics.data.gov.uk/id/local-authority/29UP,Tonbridge & Malling Borough Council,2/23/2022,0011043954/1,11043954, 344.83,Initial Washroom Hygiene,00048300,,Laundry - Roller Towels,Cleaning & Security,D21FD000042003,
http://statistics.data.gov.uk/id/local-authority/29UP,Tonbridge & Malling Borough Council,2/23/2022,0011043955/1,11043955, 333.08,Canon (UK) Limited,00298700,,Purchases - Paper,Printing,D22GA000040102,
http://statistics.data.gov.uk/id/local-authority/29UP,Tonbridge & Malling Borough Council,2/23/2022,0011043956/1,11043956, 9820.00,Reach Publishing Services Ltd,01806900,,Re-opening High Streets,Eco Dev & Reg Gen Bus Support,D52TDCV1948076,110069403
http://statistics.data.gov.uk/id/local-authority/29UP,Tonbridge & Malling Borough Council,2/23/2022,0011043958/1,11043958, 99.00,BML Building Services Ltd,01505000,,BRREP Window/door repairs,PC - General,M15JAP20001919,
http://statistics.data.gov.uk/id/local-authority/29UP,Tonbridge & Malling Borough Council,2/23/2022,0011043959/1,11043959, 225.00,Automated Limited,00007000,,BRREP Response - General,Grnd Mtce Poult Wood Golf Cent,M15HFP50001997,110069431
http://statistics.data.gov.uk/id/local-authority/29UP,Tonbridge & Malling Borough Council,2/23/2022,0011043960/1,11043960, 1566.00,BML Building Services Ltd,01505000,,BRREP Response - General,Pleasure Grounds & Open Spaces,M15HHP50001997,
http://statistics.data.gov.uk/id/local-authority/29UP,Tonbridge & Malling Borough Council,2/23/2022,0011043961/1,11043961, 272.00,BML Building Services Ltd,01505000,,BRREP Drain and gully cleaning,PC - General,M15JAP20001975,
http://statistics.data.gov.uk/id/local-authority/29UP,Tonbridge & Malling Borough Council,2/23/2022,0011043962/1,11043962, 554.00,BML Building Services Ltd,01505000,,BRREP Response - General,Tonbridge Castle / CAB,M15KFP50001997,
http://statistics.data.gov.uk/id/local-authority/29UP,Tonbridge & Malling Borough Council,2/23/2022,0011043963/1,11043963, 139.00,BML Building Services Ltd,01505000,,BRREP Response - General,Larkfield Leisure Centre,M15HDP50001997,
http://statistics.data.gov.uk/id/local-authority/29UP,Tonbridge & Malling Borough Council,2/23/2022,0011043964/1,11043964, 1.60,Royal Mail,00086200,,Purchases,Mailsort Stock Account,K37BR000001002,
http://statistics.data.gov.uk/id/local-authority/29UP,Tonbridge & Malling Borough Council,2/23/2022,0011043964/2,11043964, 13.61,Royal Mail,00086200,,Purchases,Mailsort Stock Account,K37BR000001002,
http://statistics.data.gov.uk/id/local-authority/29UP,Tonbridge & Malling Borough Council,2/23/2022,0011043964/3,11043964, 1479.92,Royal Mail,00086200,,Purchases,Mailsort Stock Account,K37BR000001002,
http://statistics.data.gov.uk/id/local-authority/29UP,Tonbridge & Malling Borough Council,2/23/2022,0011043965/1,11043965, 80.00,Maidstone Borough Council,01453900,,Hospitality,Mayoral & Other Member Support,D29LX000048003,
http://statistics.data.gov.uk/id/local-authority/29UP,Tonbridge & Malling Borough Council,2/23/2022,0011043966/1,11043966, 176.00,KCS,00054200,,Cleaning & Domestic Supplies,Cleaning & Security,D21FD000026001,110069428
http://statistics.data.gov.uk/id/local-authority/29UP,Tonbridge & Malling Borough Council,2/23/2022,0011043966/2,11043966, 519.80,KCS,00054200,,Cleaning & Domestic Supplies,Cleaning & Security,D21FD000026001,110069428
http://statistics.data.gov.uk/id/local-authority/29UP,Tonbridge & Malling Borough Council,2/23/2022,0011043967/1,11043967, 1267.95,Waterlink Services - South East Water,00496500,,BRREP Response - General,Tonbridge Farm Pavillion,M15HGP50001997,110069322
http://statistics.data.gov.uk/id/local-authority/29UP,Tonbridge & Malling Borough Council,2/23/2022,0012008263/1,12008263, 314.93,CCS Media Ltd,00018000,,Purchases,Information Technology,D27KD000040101,410032127
http://statistics.data.gov.uk/id/local-authority/29UP,Tonbridge & Malling Borough Council,2/23/2022,0012008263/2,12008263, 119.97,CCS Media Ltd,00018000,,Purchases,Information Technology,D27KD000040101,410032127
http://statistics.data.gov.uk/id/local-authority/29UP,Tonbridge & Malling Borough Council,2/23/2022,0012008263/3,12008263, 2.00,CCS Media Ltd,00018000,,Delivery Expenses,Information Technology,D27KD000044069,410032127
http://statistics.data.gov.uk/id/local-authority/29UP,Tonbridge & Malling Borough Council,2/23/2022,0012008264/1,12008264, 1.99,CCS Media Ltd,00018000,,Purchases,Information Technology,D27KD000040101,410032130
http://statistics.data.gov.uk/id/local-authority/29UP,Tonbridge & Malling Borough Council,2/23/2022,0012008264/2,12008264, 6.00,CCS Media Ltd,00018000,,Delivery Expenses,Information Technology,D27KD000044069,410032130
http://statistics.data.gov.uk/id/local-authority/29UP,Tonbridge & Malling Borough Council,2/23/2022,0012008265/3,12008265, 15522.39,Phoenix Software Ltd,00077400,755349015,Software Hire & Support,Information Technology,D27KD000044059,
http://statistics.data.gov.uk/id/local-authority/29UP,Tonbridge & Malling Borough Council,2/23/2022,0012008267/1,12008267, 236.83,NEC Software Solutions UK Ltd,01073900,202159745,Software Hire & Support,Information Technology,D27KD000044059,410032140
http://statistics.data.gov.uk/id/local-authority/29UP,Tonbridge & Malling Borough Council,2/23/2022,0012008268/1,12008268, 4151.27,NEC Software Solutions UK Ltd,01073900,202159745,Software Hire & Support,Information Technology,D27KD000044059,410032142
http://statistics.data.gov.uk/id/local-authority/29UP,Tonbridge & Malling Borough Council,2/23/2022,0012008269/1,12008269, 6967.34,NEC Software Solutions UK Ltd,01073900,202159745,Software Hire & Support,Information Technology,D27KD000044059,410032143
http://statistics.data.gov.uk/id/local-authority/29UP,Tonbridge & Malling Borough Council,2/23/2022,0012008270/1,12008270, 386.25,Siteimprove Ltd,00961700,,Subscriptions,Information Technology,D27KD000047002,
http://statistics.data.gov.uk/id/local-authority/29UP,Tonbridge & Malling Borough Council,2/23/2022,0021037765/1,21037765, 121058.50,Alliance Leisure Services Ltd,01781100,,Contract Payments,LLCP Facility Improv,P05FF000009904,210056638
http://statistics.data.gov.uk/id/local-authority/29UP,Tonbridge & Malling Borough Council,2/23/2022,0021037766/3,21037766, 18.00,HABOKE Woodyard,01804700,,Maintenance of Grounds,Open Spaces & Amenity Areas,B22LE000020402,
http://statistics.data.gov.uk/id/local-authority/29UP,Tonbridge & Malling Borough Council,2/23/2022,0021037767/1,21037767, 947.40,Landmark,01583000,,Maintenance of Grounds,Leybourne Lakes Country Park,B22LK000020402,210056396
http://statistics.data.gov.uk/id/local-authority/29UP,Tonbridge & Malling Borough Council,2/23/2022,0021037768/1,21037768, 2430.00,Malling Masonry,01822100,,Re-opening High Streets,Eco Dev & Reg Gen Bus Support,D52TDCV1948076,210056669
http://statistics.data.gov.uk/id/local-authority/29UP,Tonbridge & Malling Borough Council,2/23/2022,0021037769/1,21037769, 1380.00,Malling Masonry,01822100,,Re-opening High Streets,Eco Dev & Reg Gen Bus Support,D52TDCV1948076,210056670
http://statistics.data.gov.uk/id/local-authority/29UP,Tonbridge & Malling Borough Council,2/23/2022,0021037770/1,21037770, 340.00,Malling Masonry,01822100,,Re-opening High Streets,Eco Dev & Reg Gen Bus Support,D52TDCV1948076,210056671
http://statistics.data.gov.uk/id/local-authority/29UP,Tonbridge & Malling Borough Council,2/23/2022,0021037771/1,21037771, 703.95,Streetmaster (South Wales) Ltd,00222100,,Maintenance of Grounds,Sports Grounds,B13ET000020402,210056583
http://statistics.data.gov.uk/id/local-authority/29UP,Tonbridge & Malling Borough Council,2/23/2022,0021037772/1,21037772, 591.25,Streetmaster (South Wales) Ltd,00222100,,Maintenance of Grounds,Sports Grounds,B13ET000020402,210056575
http://statistics.data.gov.uk/id/local-authority/29UP,Tonbridge & Malling Borough Council,2/23/2022,0021037773/1,21037773, 307.99,Cater-Kwik Ltd,01265500,,Initial Furniture & Equipment,Capital Renewals Leisure,P05KGBC0209906,210056657
http://statistics.data.gov.uk/id/local-authority/29UP,Tonbridge & Malling Borough Council,2/23/2022,0021037774/1,21037774, 75.00,Mr A Nicholl,00253500,,Casual Users,Tonbridge Sports Association,B02AH000034003,
http://statistics.data.gov.uk/id/local-authority/29UP,Tonbridge & Malling Borough Council,2/23/2022,0021037774/2,21037774, 25.00,Mr A Nicholl,00253500,,Stationery,Tonbridge Sports Association,B02AH000043003,
http://statistics.data.gov.uk/id/local-authority/29UP,Tonbridge & Malling Borough Council,2/23/2022,0021037774/3,21037774, 5.00,Mr A Nicholl,00253500,,Stationery,Tonbridge Sports Association,B02AH000043003,
http://statistics.data.gov.uk/id/local-authority/29UP,Tonbridge & Malling Borough Council,2/23/2022,0021037774/4,21037774, 15.00,Mr A Nicholl,00253500,,Telephones - General,Tonbridge Sports Association,B02AH000045010,
http://statistics.data.gov.uk/id/local-authority/29UP,Tonbridge & Malling Borough Council,2/23/2022,0021037775/1,21037775, 360.00,Bravo Productions,01770200,,Re-opening High Streets,Eco Dev & Reg Gen Bus Support,D52TDCV1948076,210056682
http://statistics.data.gov.uk/id/local-authority/29UP,Tonbridge & Malling Borough Council,2/23/2022,0021037776/1,21037776, 400.00,Weddle and Co,00714900,,Re-opening High Streets,Eco Dev & Reg Gen Bus Support,D52TDCV1948076,210056673
http://statistics.data.gov.uk/id/local-authority/29UP,Tonbridge & Malling Borough Council,2/23/2022,0021037777/1,21037777, 73.30,Scottish Water Business Stream Ltd,01641100,,Sewerage Charges,Leybourne Lakes Country Park,B22LK000024003,
http://statistics.data.gov.uk/id/local-authority/29UP,Tonbridge & Malling Borough Council,2/23/2022,0021037778/1,21037778, 33500.00,Reesink UK Ltd,00052300,,Initial Furniture & Equipment,Capital Renewals Leisure,P05KGBC0309906,210056321
http://statistics.data.gov.uk/id/local-authority/29UP,Tonbridge & Malling Borough Council,2/23/2022,0022026303/1,22026303, 4900.00,Dolphin Stairlifts,00698900,,Other Expenses,Disabled Facilities Grant Mand,P03AC000009908,
http://statistics.data.gov.uk/id/local-authority/29UP,Tonbridge & Malling Borough Council,2/23/2022,0022026304/1,22026304, 648.00,Peabody South East LTD,01680900,,Other Expenses,Disabled Facilities Grant Mand,P03AC000009908,
http://statistics.data.gov.uk/id/local-authority/29UP,Tonbridge & Malling Borough Council,2/23/2022,0022026305/3,22026305, 2198.18,Castle Water,01696500,,Water Charges (Metered),Public Conveniences,H22SCH00924001,
http://statistics.data.gov.uk/id/local-authority/29UP,Tonbridge & Malling Borough Council,2/23/2022,0022026308/1,22026308, 14246.40,Craemer UK LTD,01616400,,Initial Furniture & Equipment,Green Waste Bin Growth/Replace,P02BC000009906,220003179
http://statistics.data.gov.uk/id/local-authority/29UP,Tonbridge & Malling Borough Council,2/23/2022,0022026309/3,22026309, 1221.00,G2 Recruitment Solutions,01786000,,Temporary Staff,Env Hlth & Hsg Sals&Overheads,D01AVDV0711300,
http://statistics.data.gov.uk/id/local-authority/29UP,Tonbridge & Malling Borough Council,2/23/2022,0022026310/3,22026310, 763.31,G2 Recruitment Solutions,01786000,,Temporary Staff,Env Hlth & Hsg Sals&Overheads,D01AVDV0711300,
http://statistics.data.gov.uk/id/local-authority/29UP,Tonbridge & Malling Borough Council,2/23/2022,0022026311/3,22026311, 1526.80,The Oyster Partnership,01196400,,Temporary Staff,Planning Sals&Overheads,D01AJDJ0111300,
http://statistics.data.gov.uk/id/local-authority/29UP,Tonbridge & Malling Borough Council,2/23/2022,0022026312/3,22026312, 1013.38,Vivid Resourcing,01773700,,Temporary Staff,Env Hlth & Hsg Sals&Overheads,D01AVDV0711300,
http://statistics.data.gov.uk/id/local-authority/29UP,Tonbridge & Malling Borough Council,2/23/2022,0022026313/3,22026313, 134.86,British Gas,01148500,,Electricity,Homelessness,C01AAMAUN21002,
http://statistics.data.gov.uk/id/local-authority/29UP,Tonbridge & Malling Borough Council,2/23/2022,0022026314/1,22026314, 2814.91,Clarion Housing,01078200,,Rent Deposit / Rent in Advance,Homelessness,C01AAC84844093,
http://statistics.data.gov.uk/id/local-authority/29UP,Tonbridge & Malling Borough Council,2/23/2022,0022026316/1,22026316, 222.60,Countrystyle Group,00835900,781981681,Plastic Recycling,Dry Recycling,H34SR000054019,
http://statistics.data.gov.uk/id/local-authority/29UP,Tonbridge & Malling Borough Council,2/23/2022,0022026317/1,22026317, 98583.00,Porchlight,01416700,,Professional Fees,Homelessness,C01AAROUG44001,
http://statistics.data.gov.uk/id/local-authority/29UP,Tonbridge & Malling Borough Council,2/23/2022,0022026318/3,22026318, 185.97,E.ON - Next,01790900,,Electricity,Homelessness,C01AA000021002,
http://statistics.data.gov.uk/id/local-authority/29UP,Tonbridge & Malling Borough Council,2/23/2022,0022026319/1,22026319, 170.71,Maidstone Borough Council,01173700,,Council Tax,Homelessness,C01AAMAUN23002,
http://statistics.data.gov.uk/id/local-authority/29UP,Tonbridge & Malling Borough Council,2/23/2022,0022026320/1,22026320, 3.63,Maidstone Borough Council,01173700,,Council Tax,Homelessness,C01AAMAUN23002,
http://statistics.data.gov.uk/id/local-authority/29UP,Tonbridge & Malling Borough Council,2/23/2022,0022026321/1,22026321, 32862.00,Porchlight,01416700,,Professional Fees,Homelessness,C01AAROUG44001,
http://statistics.data.gov.uk/id/local-authority/29UP,Tonbridge & Malling Borough Council,2/23/2022,0022026322/1,22026322, 19102.00,Porchlight,01416700,,Professional Fees,Homelessness,C01AAROUG44001,
http://statistics.data.gov.uk/id/local-authority/29UP,Tonbridge & Malling Borough Council,2/23/2022,0022026323/1,22026323, 209.25,Peabody South East LTD,01680900,,Countywide DFG Project,Private Sector Housing Renewal,C03BD000044031,
http://statistics.data.gov.uk/id/local-authority/29UP,Tonbridge & Malling Borough Council,2/23/2022,0022026324/1,22026324, 654.00,Peabody South East LTD,01680900,,Other Expenses,Housing Assistance,P03AD000009908,
http://statistics.data.gov.uk/id/local-authority/29UP,Tonbridge & Malling Borough Council,2/23/2022,0022026325/1,22026325, 3148.16,Clarion Housing,01078200,,Rent Deposit / Rent in Advance,Homelessness,C01AAC84844093,
http://statistics.data.gov.uk/id/local-authority/29UP,Tonbridge & Malling Borough Council,2/23/2022,0031018474/1,31018474, 24.37,Alfafado Ltd t/a Battery Station,01835100,,Purchases,Civil Contingencies,D33NA000040101,310042786
http://statistics.data.gov.uk/id/local-authority/29UP,Tonbridge & Malling Borough Council,2/23/2022,0031018474/2,31018474, 5.41,Alfafado Ltd t/a Battery Station,01835100,,Purchases,Civil Contingencies,D33NA000040101,310042786
http://statistics.data.gov.uk/id/local-authority/29UP,Tonbridge & Malling Borough Council,2/23/2022,0031018475/1,31018475, 1438.88,Chroma Vision Ltd,00891600,,Initial Furniture & Equipment,Cap Ren CCTV,P01BALLCP09906,310042760
http://statistics.data.gov.uk/id/local-authority/29UP,Tonbridge & Malling Borough Council,2/23/2022,0031018476/1,31018476, 128.28,Greenham Trading Ltd,00127900,745138823,Purchases,Civil Contingencies,D33NA000040101,310042785
http://statistics.data.gov.uk/id/local-authority/29UP,Tonbridge & Malling Borough Council,2/23/2022,0031018478/3,31018478, 1666.78,CDER Group,01773300,,Adjudication & Enforcement Ser,Parking Off-Street,E10HA000044230,
http://statistics.data.gov.uk/id/local-authority/29UP,Tonbridge & Malling Borough Council,2/23/2022,0031018483/3,31018483, 65.47,Shell U.K. Oil Products Limited,01673300,,"Petrol, Diesel & Oil",Patrolling,B22LF000030106,
http://statistics.data.gov.uk/id/local-authority/29UP,Tonbridge & Malling Borough Council,2/23/2022,0031018483/4,31018483, 91.21,Shell U.K. Oil Products Limited,01673300,,"Petrol, Diesel & Oil",Parking Off-Street,E10HA000030106,
http://statistics.data.gov.uk/id/local-authority/29UP,Tonbridge & Malling Borough Council,2/23/2022,0031018483/5,31018483, 91.22,Shell U.K. Oil Products Limited,01673300,,"Petrol, Diesel & Oil",Parking On-Street,E10HD000030106,
http://statistics.data.gov.uk/id/local-authority/29UP,Tonbridge & Malling Borough Council,2/23/2022,0031018485/1,31018485, 428.40,KM Media Group Ltd,00053900,,Advertising General,Parking Off-Street,E10HA000044216,310042787
http://statistics.data.gov.uk/id/local-authority/29UP,Tonbridge & Malling Borough Council,2/23/2022,0031018486/3,31018486, 100.00,Landmark,01583000,,Maintenance of Grounds,Countryside/Woodland Mgt,B22LG000020402,
http://statistics.data.gov.uk/id/local-authority/29UP,Tonbridge & Malling Borough Council,2/23/2022,0031018487/3,31018487, 156.30,British Telecommunications Plc,00012800,,CCTV Monitoring Station,Security Services Management,E09GA000051020,
http://statistics.data.gov.uk/id/local-authority/29UP,Tonbridge & Malling Borough Council,2/23/2022,0031018488/1,31018488, 695.00,Archway Highway Services Ltd,01398000,,Premises Repairs & Maintenance,Parking On-Street,E10HD000020601,310042782
http://statistics.data.gov.uk/id/local-authority/29UP,Tonbridge & Malling Borough Council,2/23/2022,0031018489/1,31018489, 218.97,Ton Hire,00877600,,Transport Insurance,Parking Off-Street,E10HA000035001,310042774
http://statistics.data.gov.uk/id/local-authority/29UP,Tonbridge & Malling Borough Council,2/23/2022,0031018489/2,31018489, 145.98,Ton Hire,00877600,,Transport Insurance,Parking On-Street,E10HD000035001,310042774
http://statistics.data.gov.uk/id/local-authority/29UP,Tonbridge & Malling Borough Council,2/23/2022,0031018490/1,31018490, 88.21,Greenham Trading Ltd,00127900,745138823,Protective Clothing,Planning Sals&Overheads,D01AJDJ0242001,310042776
http://statistics.data.gov.uk/id/local-authority/29UP,Tonbridge & Malling Borough Council,2/23/2022,0031018490/2,31018490, 93.26,Greenham Trading Ltd,00127900,745138823,Protective Clothing,Planning Sals&Overheads,D01AJDJ0242001,310042776
http://statistics.data.gov.uk/id/local-authority/29UP,Tonbridge & Malling Borough Council,2/23/2022,0031018490/3,31018490, 80.33,Greenham Trading Ltd,00127900,745138823,Protective Clothing,Planning Sals&Overheads,D01AJDJ0242001,310042776
http://statistics.data.gov.uk/id/local-authority/29UP,Tonbridge & Malling Borough Council,2/23/2022,0031018490/4,31018490, 59.86,Greenham Trading Ltd,00127900,745138823,Protective Clothing,Planning Sals&Overheads,D01AJDJ0242001,310042776
http://statistics.data.gov.uk/id/local-authority/29UP,Tonbridge & Malling Borough Council,2/23/2022,0031018490/5,31018490, 59.86,Greenham Trading Ltd,00127900,745138823,Protective Clothing,Planning Sals&Overheads,D01AJDJ0242001,310042776
http://statistics.data.gov.uk/id/local-authority/29UP,Tonbridge & Malling Borough Council,2/23/2022,0031018490/6,31018490, 12.16,Greenham Trading Ltd,00127900,745138823,Protective Clothing,Planning Sals&Overheads,D01AJDJ0242001,310042776
http://statistics.data.gov.uk/id/local-authority/29UP,Tonbridge & Malling Borough Council,2/23/2022,0031018491/1,31018491, 6109.90,PSR Lighting & Signs Ltd,01265400,,Re-opening High Streets,Eco Dev & Reg Gen Bus Support,D52TDCV1948076,310042737
http://statistics.data.gov.uk/id/local-authority/29UP,Tonbridge & Malling Borough Council,2/23/2022,0032009408/1,32009408, 192.78,KM Media Group Ltd,00053900,,Advertising General,Development Management,A01ABZ99944216,320003381
http://statistics.data.gov.uk/id/local-authority/29UP,Tonbridge & Malling Borough Council,2/23/2022,0032009409/1,32009409, 2586.00,G L Hearn Ltd,01483700,,Development of Local Plan,Development of Local Plan,A01AE000044023,320003359
http://statistics.data.gov.uk/id/local-authority/29UP,Tonbridge & Malling Borough Council,2/23/2022,0032009410/1,32009410, 4138.00,Kent County Council,00322500,,AONB Management,Planning Policy,A01AF000044163,320003385
http://statistics.data.gov.uk/id/local-authority/29UP,Tonbridge & Malling Borough Council,2/23/2022,0032009411/1,32009411, 2780.36,G2 Recruitment Solutions,01786000,,Temporary Staff,Planning Sals&Overheads,D01AJDJ0111300,
http://statistics.data.gov.uk/id/local-authority/29UP,Tonbridge & Malling Borough Council,2/23/2022,0032009412/1,32009412, 3330.00,The Oyster Partnership,01196400,,Temporary Staff,Planning Sals&Overheads,D01AJDJ0111300,
http://statistics.data.gov.uk/id/local-authority/29UP,Tonbridge & Malling Borough Council,2/23/2022,0032009413/1,32009413, 5000.00,Robinson Escott Planning LLP,01653000,,Application & Appeals,Development Management,A01AB000044194,320003326
http://statistics.data.gov.uk/id/local-authority/29UP,Tonbridge & Malling Borough Council,2/23/2022,0032009414/1,32009414, 500.00,DHA Planning Ltd,01553900,,Professional Fees,Planning Policy,A01AF000044001,
http://statistics.data.gov.uk/id/local-authority/29UP,Tonbridge & Malling Borough Council,2/23/2022,0041033996/1,41033996, 855.00,HB Info Ltd,01478600,,Subscriptions,Finance Sals&Overheads,D01AFDF1147002,410032128
http://statistics.data.gov.uk/id/local-authority/29UP,Tonbridge & Malling Borough Council,2/23/2022,0041033997/3,41033997, 371.25,KH Recruitment Ltd,01738900,,Temporary Staff,Finance Sals&Overheads,D01AFDF1111300,
http://statistics.data.gov.uk/id/local-authority/29UP,Tonbridge & Malling Borough Council,2/23/2022,0041034003/1,41034003, 1764.00,The Oyster Partnership,01196400,,Temporary Staff,Finance Sals&Overheads,D01AFDF1111300,
http://statistics.data.gov.uk/id/local-authority/29UP,Tonbridge & Malling Borough Council,2/23/2022,0041034004/1,41034004, 925.00,Morgan Hunt UK Ltd,01086900,,Temporary Staff,Finance Sals&Overheads,D01AFDF1111300,
http://statistics.data.gov.uk/id/local-authority/29UP,Tonbridge & Malling Borough Council,2/23/2022,0041034005/1,41034005, 1139.50,Morgan Hunt UK Ltd,01086900,,Temporary Staff,Finance Sals&Overheads,D01AFDF1111300,
http://statistics.data.gov.uk/id/local-authority/29UP,Tonbridge & Malling Borough Council,2/23/2022,0041034010/1,41034010, 1445.00,Security Plus + Limited,01815500,536937019,Cash Collection,Parking Off-Street,E10HA000044007,
http://statistics.data.gov.uk/id/local-authority/29UP,Tonbridge & Malling Borough Council,2/23/2022,0041034018/1,41034018, 15.00,WorldPay ,01568000,,Credit Card Commission,Banking Arrangements,D43QK000044082,
http://statistics.data.gov.uk/id/local-authority/29UP,Tonbridge & Malling Borough Council,2/23/2022,0041034019/1,41034019, 164.70,WorldPay ,01568000,,Credit Card Commission,Banking Arrangements,D43QK000044082,
http://statistics.data.gov.uk/id/local-authority/29UP,Tonbridge & Malling Borough Council,2/23/2022,0041034020/1,41034020, 570.40,WorldPay ,01568000,,Credit Card Commission,Banking Arrangements,D43QK000044082,
http://statistics.data.gov.uk/id/local-authority/29UP,Tonbridge & Malling Borough Council,2/23/2022,0051008646/1,51008646, 40.00,The Institute of Licensing (Events),01463600,,Ext Fees/Prof & Tech,Training,D10DCDR0413561,
http://statistics.data.gov.uk/id/local-authority/29UP,Tonbridge & Malling Borough Council,2/23/2022,0051008659/3,51008659, 40.00,The Institute of Licensing (Events),01463600,,Ext Fees/Prof & Tech,Training,D10DCDR0413561,
http://statistics.data.gov.uk/id/local-authority/29UP,Tonbridge & Malling Borough Council,2/23/2022,0051008660/1,51008660, 30.00,Maidstone & Tun Wells NHS Trust,00067100,,Occuptional Health Medicals,Health Care,D10DBDB0313311,
http://statistics.data.gov.uk/id/local-authority/29UP,Tonbridge & Malling Borough Council,2/23/2022,0051008660/2,51008660, 30.00,Maidstone & Tun Wells NHS Trust,00067100,,Occuptional Health Medicals,Health Care,D10DBDC0113311,
http://statistics.data.gov.uk/id/local-authority/29UP,Tonbridge & Malling Borough Council,2/23/2022,0051008660/3,51008660, 30.00,Maidstone & Tun Wells NHS Trust,00067100,,Occuptional Health Medicals,Health Care,D10DBDJ0113311,
http://statistics.data.gov.uk/id/local-authority/29UP,Tonbridge & Malling Borough Council,2/23/2022,0051008660/4,51008660, 30.00,Maidstone & Tun Wells NHS Trust,00067100,,Occuptional Health Medicals,Health Care,D10DBDR0713311,
http://statistics.data.gov.uk/id/local-authority/29UP,Tonbridge & Malling Borough Council,2/23/2022,0051008661/1,51008661, 332.00,Maidstone & Tun Wells NHS Trust,00067100,,Occuptional Health Medicals,Health Care,D10DBDB0313311,
http://statistics.data.gov.uk/id/local-authority/29UP,Tonbridge & Malling Borough Council,2/23/2022,0051008661/2,51008661, 72.00,Maidstone & Tun Wells NHS Trust,00067100,,Occuptional Health Medicals,Health Care,D10DBDC0113311,
http://statistics.data.gov.uk/id/local-authority/29UP,Tonbridge & Malling Borough Council,2/23/2022,0051008661/3,51008661, 72.00,Maidstone & Tun Wells NHS Trust,00067100,,Occuptional Health Medicals,Health Care,D10DBDR0713311,
http://statistics.data.gov.uk/id/local-authority/29UP,Tonbridge & Malling Borough Council,2/24/2022,0041034022/1,41034022, 357.21,Nova Lifts,01735600,,BRREP Servicing - lifts,Leis Man Poult Wood Golf Centr,M15HEP20001930,
http://statistics.data.gov.uk/id/local-authority/29UP,Tonbridge & Malling Borough Council,2/24/2022,0041034023/1,41034023, 68.00,National Westminster Bank Plc,00069400,,Direct Debit / Bank Charges,Local Revenue & NNDR Collect,D41QA000044079,
http://statistics.data.gov.uk/id/local-authority/29UP,Tonbridge & Malling Borough Council,2/24/2022,0041034024/1,41034024, 200.58,National Westminster Bank Plc,00069400,,Direct Debit / Bank Charges,Local Revenue & NNDR Collect,D41QA000044079,
